Cogmind - Beta 11 @@@ ROGUE MODE // 2022.04.21 @ 13:50:29 Player: CrossedViper Result: Escaped! Performance ------------- Evolutions (9) 4500 Regions Visited (36) 7200 Robots Destroyed (472) 2360 Value Destroyed (29008) 29008 Prototype IDs (142) 2840 Alien Tech Used (7) 1400 Bonus (30104) 30104 TOTAL SCORE: 77412 Bonus ------- High Alert Combat Kills 3702 Follower Combat Kills 4898 Entered Garrisons 1600 Used RIF Installer 4000 Aligned with FarCom 300 Met Zhirov 300 Scanned by Researcher 500 Acquired SGEMP 2000 Delivered SGEMP 2000 Destroyed MAIN.C Guards 500 Met MAIN.C 5000 Destroyed MAIN.C Shell 5000 Win 3000 Friendly Fire -2696 Cogmind --------- Core Integrity 133/1600 Matter 300/300 Energy 99/100 System Corruption 11% Temperature Cool (0) Movement Core (50) Location To Epsilon Eridani Parts ------- > --- POWER (3) -------- (None) > --- PROPULSION (6) --- Enhanced Armored Heavy Treads Experimental Biometal Medium Treads Biometal Leg Experimental Biometal Leg > --- UTILITY (14) ----- Spectral Analyzer Experimental Targeting Computer Experimental Core Analyzer Graphene Brace Spacefold Activator > --- WEAPON (2) ------- (None) > --- INVENTORY (5) ---- Core Cannon Perforator Peak State ------------ > --- POWER ------------ Improved Quantum Reactor Zero-point Reactor Zero-point Reactor > --- PROPULSION ------- Experimental Biometal Heavy Treads Advanced Heavy Siege Treads Experimental Biometal Medium Treads Experimental Biometal Leg > --- UTILITY ---------- Huge Storage Unit Superbattery Machine Analyzer Spectral Analyzer Experimental Core Analyzer Experimental Transmission Jammer Experimental Core Shielding Centrium Medium Armor Plating Centrium Medium Armor Plating Centrium Medium Armor Plating Graphene Brace Beam Splitter Antimissile System Experimental System Purifier > --- WEAPON ----------- Graviton Cannon Graviton Cannon > --- INVENTORY -------- Light Ion Engine Enhanced Armored Heavy Treads Biometal Leg Experimental Energy Well YI-UF0's Bottomless Matter Pit High-powered Transdimensional Reconstructor High-powered Transdimensional Reconstructor Spacefold Activator Heavy Quantum Rifle Null Cannon Disintegrator Core Cannon Hypervelocity Multirail Compact Linear Accelerator Perforator Rocket Array Improved Remote Datajack Improved Plasma Cutter Gravity Flail [Rating: 246] Favorites ----------- Power Cold Fusion Reactor Engine Reinforced Deuterium Engine Power Core Neutrino Core Reactor Cold Fusion Reactor Propulsion Light Treads Treads Light Treads Leg Experimental Myomer Leg Wheel Armored Huge Wheel Utility Huge Storage Unit Device Experimental Cooling System Storage Huge Storage Unit Processor Experimental Optical Array Hackware Relay Coupler [NC] Protection Improved Medium Armor Plating Artifact Spacefold Activator Weapon Quantum Rifle Energy Gun Quantum Rifle Energy Cannon Particle Cannon Ballistic Gun Hypervelocity Multirail Ballistic Cannon Heavy Gauss Cannon Launcher Precision Rocket Launcher Special Weapon Improved Remote Datajack Impact Weapon Impact Mace Build | -11 -10 -10 -9 -9 -9 -8 -8 -8 -8 -8 -7 -7 -7 -7 -6 -6 -6 -6 -5 -5 -5 -5 -4 -4 -4 -4 -4 -4 -3 -3 -3 -2 -2 -2 -1 -1 ------- Run | Scr Mat Min Mat Min Exi Min Mat Gar Mat Gar Fac Gar Fac Gar Fac Gar Fac Gar Fac Was Fac Gar Fac Gar Fac Upp Upp Zhi Pro Res Tes Res Qua Sec Acc Com Slots Evolved 18 | . . . 2 . . . 2 . . . 2 . . . 2 . . . 2 . . . 2 . . . . . . 2 . 2 . . 2 . Power 2 | . . . . . . . . . . . . . . . 1 . . . . . . . . . . . . . . . . 1 . . . . Propulsion 4 | . . . . . . . . . . . . . . . . . . . 2 . . . 2 . . . . . . . . . . . . . Utility 12 | . . . 2 . . . 2 . . . 2 . . . 1 . . . . . . . . . . . . . . 2 . 1 . . 2 . Weapon . | . . . . . . . . . . . . . . . . . . . . . . . . . . . . . . . . . . . . . Parts Attached 633 | 6 3 7 17 2 7 . 1 23 14 4 28 18 42 18 18 16 23 31 5 5 13 37 4 28 . 3 10 4 6 16 75 12 12 45 18 62 Power 54 | 1 1 . 1 1 . . . 1 4 . 2 . 2 . 2 . 1 4 . . 1 2 . 2 . 1 . 1 1 1 7 5 5 1 . 7 Engine 16 | 1 1 . 1 1 . . . 1 4 . 1 . 1 . . . . 1 . . . 1 . 1 . . . . . 1 . . . . . 1 Core 5 | . . . . . . . . . . . 1 . 1 . . . . . . . . 1 . . . . . 1 . . . . 1 . . . Reactor 33 | . . . . . . . . . . . . . . . 2 . 1 3 . . 1 . . 1 . 1 . . 1 . 7 5 4 1 . 6 Propulsion 91 | 2 . 3 3 . 2 . . 6 3 1 2 . 2 1 3 1 1 6 2 3 1 7 2 4 . . 1 . . 2 14 2 2 4 3 8 Treads 49 | 2 . 1 3 . 2 . . 6 3 1 . . . . . . . 1 . . 1 7 2 4 . . 1 . . 2 4 . . . 3 6 Leg 24 | . . 2 . . . . . . . . . . . . . . . 2 . . . . . . . . . . . . 10 2 2 4 . 2 Wheel 18 | . . . . . . . . . . . 2 . 2 1 3 1 1 3 2 3 . . . . . . . . . . . . . . . . Hover . | . . . . . . . . . . . . . . . . . . . . . . . . . . . . . . . . . . . . . Flight . | . . . . . . . . . . . . . . . . . . . . . . . . . . . . . . . . . . . . . Utility 240 | 1 2 2 6 1 4 . 1 6 4 1 15 8 22 7 5 10 10 3 3 2 5 19 1 12 . . 3 1 4 10 22 3 1 17 3 26 Device 69 | . . 1 2 . 1 . . 2 2 . 1 1 3 2 . 1 2 . 2 2 3 3 . 1 . . 2 1 . 3 8 1 . 12 2 11 Storage 18 | 1 1 . 2 . 2 . . 2 . 1 1 . 2 . . . 1 1 . . . . . . . . . . . . . . . . . 4 Processor 14 | . . . . . . . 1 . . . 1 . 1 . . . . . . . . . . . . . . . . 1 5 . . 1 . 4 Hackware 88 | . . . . . . . . 1 . . 9 5 7 4 5 9 6 2 . . 2 13 1 9 . . . . 4 4 5 . 1 . 1 . Protection 48 | . 1 1 2 1 1 . . 1 2 . 3 2 9 1 . . 1 . 1 . . 3 . 2 . . 1 . . 2 4 2 . 3 . 5 Artifact 3 | . . . . . . . . . . . . . . . . . . . . . . . . . . . . . . . . . . 1 . 2 Weapon 248 | 2 . 2 7 . 1 . . 10 3 2 9 10 16 10 8 5 11 18 . . 6 9 1 10 . 2 6 2 1 3 32 2 4 23 12 21 Energy Gun 106 | 2 . . 4 . 1 . . 6 2 1 6 6 8 7 3 3 6 9 . . 2 4 . 7 . 1 2 . . 1 18 1 2 3 . 1 Energy Cannon 28 | . . 2 1 . . . . 1 . . . . 2 . . . . . . . . . . . . . . . . 1 2 . . 8 2 9 Ballistic Gun 18 | . . . . . . . . 1 1 . . . . . . . . . . . 1 2 . . . . . . . . 2 . 1 7 2 1 Ballistic Cannon 25 | . . . . . . . . . . . . . . . . . . . . . . . . 2 . . 2 1 . 1 2 . . 3 5 9 Launcher 19 | . . . 2 . . . . 2 . 1 . 1 2 1 . . 1 5 . . . . . . . . . . . . . . 1 . 3 . Special Weapon 48 | . . . . . . . . . . . 3 3 4 2 5 2 3 4 . . 2 2 1 1 . 1 2 1 1 . 7 1 . 2 . 1 Impact Weapon 4 | . . . . . . . . . . . . . . . . . 1 . . . 1 1 . . . . . . . . 1 . . . . . Slashing Weapon . | . . . . . . . . . . . . . . . . . . . . . . . . . . . . . . . . . . . . . Piercing Weapon . | . . . . . . . . . . . . . . . . . . . . . . . . . . . . . . . . . . . . . Special Melee Weapon . | . . . . . . . . . . . . . . . . . . . . . . . . . . . . . . . . . . . . . Unidentified Prototypes 61 | . . 1 1 . 1 . . . 2 . 1 . 10 . 1 . 3 . . . 2 . . . . . . 1 . 1 13 . 1 9 2 12 Corrupted Parts 12 | . . . . . . . . . . . . . . . . . . 2 . . . . . . . . . . . . 5 . . . . 5 System Corruption 68 | . . . . . . . . . . . . . . . . . . 17 . . . . . . . . . . . . 33 . . . . 18 Parts Lost 99 | . 1 . 1 1 . . . 5 5 . 4 3 7 . 1 . 4 15 . 7 2 1 . 1 . 1 2 . . . 1 . 1 4 2 30 Power 20 | . 1 . 1 . . . . 1 1 . 1 . 1 . . . . 4 . 1 . . . 1 . . . . . . . . . . 1 7 Propulsion 16 | . . . . . . . . . . . . . 2 . . . 1 2 . 4 . 1 . . . . 1 . . . . . . 1 . 4 Utility 47 | . . . . 1 . . . 3 4 . 2 2 4 . . . 3 3 . 1 1 . . . . 1 1 . . . 1 . 1 2 1 16 Weapon 16 | . . . . . . . . 1 . . 1 1 . . 1 . . 6 . 1 1 . . . . . . . . . . . . 1 . 3 Highest Loss Streak 10 | . 1 . 1 1 . . . 3 1 . 2 2 3 . 1 . 2 8 . 7 1 1 . 1 . 1 2 . . . 1 . 1 2 1 10 To Critical Strikes 2 | . . . . . . . . . . . . . 2 . . . . . . . . . . . . . . . . . . . . . . . Average Slot Usage (%) 84 | . 98 99 94 100 100 100 88 91 95 93 74 75 70 72 77 79 77 71 88 73 78 92 94 84 89 88 84 82 86 86 87 98 95 92 72 72 Engine 3 | . 14 14 10 11 11 11 9 8 8 9 2 7 3 . 2 . . 1 5 2 . 1 5 5 5 5 5 5 5 4 1 . . . . . Core 1 | . . . . . . . . . . . 4 . 3 7 2 . . . . . . 4 5 3 . . . 3 4 . . . . . . . Reactor 4 | . . . . . . . . . . . . . . . 7 13 13 10 5 5 10 4 . 1 5 5 5 1 . 4 7 11 12 13 10 8 Treads 9 | . 28 19 8 22 22 22 18 17 18 18 2 . . . . . . . . . 4 15 26 21 21 21 20 21 21 18 10 . . . 10 11 Leg 3 | . . 8 13 . . . . . . . . . . . . . . 4 . . . . . . . . . . . . 9 25 25 25 2 . Wheel 2 | . . . . . . . . . . . 5 7 7 7 5 6 6 5 22 16 11 1 . . . . . . . . . . . . . . Device 12 | . . . 11 11 16 22 18 21 25 24 7 1 . 6 . . 1 7 13 15 21 15 11 5 5 5 9 15 10 13 17 25 26 20 15 21 Storage 6 | . 14 14 11 11 11 11 9 9 9 9 7 7 7 7 6 6 6 5 5 5 5 5 5 5 5 5 5 5 5 4 4 4 4 4 4 6 Processor 2 | . . . . . . . 7 9 2 . 4 7 2 . . . . . . . . . . . . . . . . 3 5 4 4 5 8 8 Hackware 15 | . . . . . . . . . 9 9 19 20 21 14 29 31 29 21 17 13 11 25 25 25 31 30 23 21 23 20 13 4 4 5 6 2 Protection 6 | . 12 14 16 22 16 11 9 7 4 6 1 7 10 12 6 6 5 . 4 5 4 3 5 5 5 5 4 5 5 4 4 12 8 8 8 5 Energy Gun 8 | . 28 11 10 11 13 22 18 15 15 18 12 13 10 11 7 9 5 11 11 5 1 6 6 6 10 7 6 . . . 5 8 6 . . . Energy Cannon 1 | . . 16 11 11 8 . . . 2 . . . . . . . . . . . . . . . . . . . . . . . . 4 . 2 Special Weapon 1 | . . . . . . . . . . . 2 . 2 2 4 3 5 1 . . . 2 4 3 . 2 1 3 5 3 1 . . . . . Naked Turns . | . . . . . . . . . . . . . . . . . . . . . . . . . . . . . . . . . . . . . Heaviest Build 258 | 12 18 20 65 68 68 68 68 91 68 211 238 239 258 123 104 117 144 117 130 144 138 136 131 130 127 127 129 132 135 159 159 175 170 217 212 216 Greatest Support 240 | 40 40 30 40 40 40 40 40 40 40 40 40 28 28 28 28 28 28 35 48 48 70 116 176 193 193 193 193 193 193 205 210 161 166 166 240 240 Greatest Overweight (x) 38 | . . . 2 1 1 1 1 2 1 5 8 8 9 4 3 4 5 38 2 4 5 10 . . . . . . . . 1 1 1 1 1 1 Average Overweight (x) 2 | . . . . 1 1 1 1 1 1 1 7 8 7 3 3 3 4 3 2 2 4 1 . . . . . . . . . . . . . . Largest Inventory Capacity 35 | 8 10 10 20 20 20 20 20 35 20 35 35 35 35 20 20 20 25 25 25 25 25 25 25 25 25 25 25 25 25 25 25 25 25 25 25 25 Average Capacity 24 | 6 8 10 18 20 20 20 20 20 20 24 35 35 32 20 20 20 24 24 25 25 25 25 25 25 25 25 25 25 25 25 25 25 25 25 25 24 Most Carried 35 | 5 8 10 20 20 20 20 20 20 20 23 35 35 35 20 20 20 25 25 24 24 25 25 24 25 25 25 25 24 25 25 25 25 25 25 25 25 Average Carried 22 | 2 4 9 14 19 19 20 20 17 19 20 29 34 29 19 19 19 19 20 23 21 22 24 23 23 25 24 24 23 22 24 24 23 24 24 24 22 Final Capacity 35 | 8 10 10 20 20 20 20 20 20 20 35 35 35 20 20 20 20 25 25 25 25 25 25 25 25 25 25 25 25 25 25 25 25 25 25 25 5 Final Carried 35 | 3 7 10 18 19 20 20 20 20 20 23 34 35 19 20 19 20 22 25 23 19 24 25 23 25 25 25 23 24 25 22 25 25 25 23 25 4 Class Distribution -------------------- 37% | Botlord-Mutant 24% | Scavenger-Mutant 15% | Bothacker-Mutant 13% | Generator-Mutant 3% | Mutant 3% | Hacker-Mutant Dominant Class ---------------- Mutant | -10/Materials Mutant | -10/Mines Scavenger-Mutant | -9/Materials Scavenger-Mutant | -9/Mines Scavenger-Mutant | -9/Exiles Scavenger-Mutant | -8/Mines Scavenger-Mutant | -8/Materials Scavenger-Mutant | -8/Garrison Scavenger-Mutant | -8/Materials Scavenger-Mutant | -8/Garrison Bothacker-Mutant | -7/Factory Bothacker-Mutant | -7/Garrison Bothacker-Mutant | -7/Factory Botlord-Mutant | -7/Garrison Botlord-Mutant | -6/Factory Botlord-Mutant | -6/Garrison Botlord-Mutant | -6/Factory Hacker-Mutant | -6/Garrison Scavenger-Mutant | -5/Factory Mutant | -5/Waste Mutant | -5/Factory Botlord-Mutant | -5/Garrison Botlord-Mutant | -4/Factory Botlord-Mutant | -4/Garrison Botlord-Mutant | -4/Factory Botlord-Mutant | -4/Upper Caves Botlord-Mutant | -4/Upper Caves Botlord-Mutant | -4/Zhirov Botlord-Mutant | -3/Proximity Caves Botlord-Mutant | -3/Research Botlord-Mutant | -3/Testing Scavenger-Mutant | -2/Research Generator-Mutant | -2/Quarantine Generator-Mutant | -2/Section 7 Generator-Mutant | -1/Access Generator-Mutant | -1/Command Resources | -11 -10 -10 -9 -9 -9 -8 -8 -8 -8 -8 -7 -7 -7 -7 -6 -6 -6 -6 -5 -5 -5 -5 -4 -4 -4 -4 -4 -4 -3 -3 -3 -2 -2 -2 -1 -1 ----------- Run | Scr Mat Min Mat Min Exi Min Mat Gar Mat Gar Fac Gar Fac Gar Fac Gar Fac Gar Fac Was Fac Gar Fac Gar Fac Upp Upp Zhi Pro Res Tes Res Qua Sec Acc Com Matter Collected 19292 | 260 79 50 254 24 . . . 479 835 219 940 324 527 385 268 264 377 1063 . . 63 1086 . 734 . 94 210 100 308 339 2091 127 240 2555 1079 3918 Remotely . | . . . . . . . . . . . . . . . . . . . . . . . . . . . . . . . . . . . . . Salvage Created 23325 | . 316 190 1508 74 . . . 765 1252 223 852 504 1271 767 287 510 317 1930 70 . 167 344 . 85 . 91 131 100 . 148 1743 517 1383 3893 1375 2512 Parts 1041 | . 21 11 100 4 . . . 35 77 14 41 21 52 40 8 20 31 66 . . 13 22 . 3 . 10 11 11 . 10 78 21 56 137 73 55 Haulers Intercepted 24 | . 2 . 5 . . . . . 3 . 3 . 2 . 1 . . . . . . . . . . . . . . 1 . . 2 3 2 . Recyclers Shooed 12 | . 2 1 2 . . . . . 2 . . . . . . . 2 . . . . . . . . . . . . 3 . . . . . . Parts Field Recycled . | . . . . . . . . . . . . . . . . . . . . . . . . . . . . . . . . . . . . . Retrieved Matter . | . . . . . . . . . . . . . . . . . . . . . . . . . . . . . . . . . . . . . Parts Self-Destructed 56 | . . . . . . . . . . . . . . . . . . . . . . . . . . 10 12 11 23 . . . . . . . Prevented . | . . . . . . . . . . . . . . . . . . . . . . . . . . . . . . . . . . . . . Kills | -11 -10 -10 -9 -9 -9 -8 -8 -8 -8 -8 -7 -7 -7 -7 -6 -6 -6 -6 -5 -5 -5 -5 -4 -4 -4 -4 -4 -4 -3 -3 -3 -2 -2 -2 -1 -1 ------- Run | Scr Mat Min Mat Min Exi Min Mat Gar Mat Gar Fac Gar Fac Gar Fac Gar Fac Gar Fac Was Fac Gar Fac Gar Fac Upp Upp Zhi Pro Res Tes Res Qua Sec Acc Com Combat Hostiles Destroyed 375 | . 6 . 34 2 . . . 23 18 8 14 12 22 19 2 7 10 34 1 . 3 4 . 1 . 4 5 . . 1 23 7 18 45 30 22 Melee 2 | . . . . . . . . . . . . . . . . . . . . . . 1 . . . . . . . . 1 . . . . . Guns 225 | . 5 . 22 1 . . . 17 17 3 13 9 21 17 2 5 4 12 1 . 3 3 . 1 . 4 3 . . 1 15 7 14 14 6 5 Cannons 67 | . . . 5 1 . . . . 1 . . . . . . . . . . . . . . . . . 2 . . . 3 . . 25 15 15 AOE 56 | . . . 7 . . . . 6 . 4 . 2 . 2 . . 6 16 . . . . . . . . . . . . . . 4 . 9 . Classes Destroyed 27 | . 5 . 5 . . . . 2 2 . 2 . 1 2 . . . . . . . 1 . . . 1 . . . . 3 . . 3 . . Worker 16 | . . . . . . . . . 1 . 1 . 1 . . . 3 . . . . . . . . . . . . . . . 1 3 2 4 Builder 17 | . 1 . 1 . . . . . 1 . . . 1 . . . 1 . . . . . . . . . . . . 1 1 . . 7 3 . Tunneler 4 | . . . . . . . . . 3 . 1 . . . . . . . . . . . . . . . . . . . . . . . . . Hauler 24 | . 2 . 5 . . . . . 3 . 3 . 2 . 1 . . . . . . . . . . . . . . 1 . . 2 3 2 . Recycler 8 | . . . 2 . . . . . 1 . . . . . . . . . . . . . . . . . . . . . . . . 3 . 2 Carrier 1 | . . . . . . . . . . . . . . 1 . . . . . . . . . . . . . . . . . . . . . . Mechanic 2 | . . . . . . . . . . . . . . . . . . . . . . . . . . . . . . . . . . 1 . 1 Operator 6 | . 1 . . . . . . . 2 . . . . . . . . . . . . . . . . . . . . . 1 . 1 . . 1 Watcher 11 | . . . 1 . . . . . 3 . . . . . 1 1 1 . . . . . . . . . . . . . . . 1 2 . 1 Swarmer 93 | . 2 . 12 . . . . 3 4 4 1 3 2 11 . . 8 12 . . . . . . . 3 3 . . . . . 5 4 16 . Cutter 5 | . . . . . . . . 3 . . . . . 2 . . . . . . . . . . . . . . . . . . . . . . Grunt 139 | . 4 . 12 2 . . . 10 6 2 5 9 5 4 . 6 . 17 . . . 1 . . . . . . . . 8 3 11 22 7 5 Brawler 12 | . . . 1 . . . . . . . . . 3 . . . . 2 . . . . . . . . . . . . 1 . . 2 . 3 Duelist 6 | . . . . . . . . . . . 2 . 1 . . . . . . . . . . . . . . . . . 1 1 . . 1 . Protector 2 | . . . 1 . . . . . . . . . 1 . . . . . . . . . . . . . . . . . . . . . . . Researcher 5 | . . . . . . . . . . . . . . . . . . . . . . . . . . . . . . . 3 . 2 . . . Sentry 40 | . . . 8 . . . . 6 6 1 2 . 1 1 . . . . 1 . 1 2 . 1 . . . . . . . 1 . 7 2 . Demolisher 1 | . . . . . . . . . . . . . . 1 . . . . . . . . . . . . . . . . . . . . . . Specialist 3 | . . . . . . . . . . . . . 1 . . . . . . . . . . . . . . . . . . . . 2 . . Hunter 31 | . . . . . . . . 1 2 1 1 . 4 . 2 1 2 3 . . . 1 . . . . . . . 1 3 . . 4 3 2 Programmer 25 | . . . . . . . . . . . 4 . 4 . . . . . . . 2 . . . . . 1 . . 1 6 2 2 . 1 2 Heavy 1 | . . . . . . . . . . . . . . . . . . . . . . . . . . . . . . . . . . 1 . . Q-Series 1 | . . . . . . . . . . . . . . . . . . . . . . . . . . . . . . . . . . 1 . . Behemoth 1 | . . . . . . . . . . . . . . . . . . . . . . 1 . . . . . . . . . . . . . . S7 Guard 2 | . . . . . . . . . . . . . . . . . . . . . . . . . . . . . . . . . . 2 . . M Guard 2 | . . . . . . . . . . . . . . . . . . . . . . . . . . . . . . . . . . . . 2 Enhanced Q-Series 6 | . . . . . . . . . . . . . . . . . . . . . . . . . . . . . . . . . . . . 6 Combat Programmer 1 | . . . . . . . . . . . . . . . . . . . . . . . . . . . . . . . . . . . . 1 Striker 2 | . . . . . . . . . . . . . . . . . . . . . . . . . . . . . . . 2 . . . . . Alpha 7 2 | . . . . . . . . . . . . . . . . . . . . . . . . . . . . . . . 2 . . . . . Master Thief 2 | . . . . . . . . . . . . . . . . . . . . . . . . . . 1 1 . . . . . . . . . Thug 1 | . . 1 . . . . . . . . . . . . . . . . . . . . . . . . . . . . . . . . . . Best Kill Streak 21 | . 5 . 6 2 . . . 9 4 4 4 6 9 8 2 2 3 21 1 . 2 1 . 1 . 3 3 . . 2 4 4 9 12 10 8 Combat Bots Only 21 | . 4 . 6 2 . . . 9 3 4 4 6 9 8 2 2 3 21 1 . 2 1 . 1 . 3 3 . . 1 4 4 6 8 8 6 Max Kills in Single Turn 4 | . 1 1 4 1 . . . 2 2 4 1 2 2 1 1 1 2 4 1 . 1 1 . 1 . 2 2 . . 1 1 1 3 2 4 2 Gunslinging 1 | . . . . . . . . 1 . . . . . . . . . . . . . . . . . 1 . . . . . . . . . . Exploded 4 | . . . 3 . . . . 2 . 4 . 2 . 1 . . 2 4 . . . . . . . . . . . . . . 2 . 4 . Melee 1 | . . . . . . . . . . . . . . . . . . . . . . 1 . . . . . . . . 1 . . . . . Uniques/NPCs Destroyed 2 | . . 1 . . . . . . . . . . . . . . . . . . . . . . . . . . . . . . . . . 1 YI-UF0 (-10/Mines) MAIN.C Shell (-1/Command) Combat | -11 -10 -10 -9 -9 -9 -8 -8 -8 -8 -8 -7 -7 -7 -7 -6 -6 -6 -6 -5 -5 -5 -5 -4 -4 -4 -4 -4 -4 -3 -3 -3 -2 -2 -2 -1 -1 -------- Run | Scr Mat Min Mat Min Exi Min Mat Gar Mat Gar Fac Gar Fac Gar Fac Gar Fac Gar Fac Was Fac Gar Fac Gar Fac Upp Upp Zhi Pro Res Tes Res Qua Sec Acc Com Damage Taken 41343 | . 314 . 742 95 . . 110 1248 756 317 1487 919 2263 1374 725 867 1972 1942 147 279 680 1027 87 603 . 265 533 . 212 129 1543 567 689 3818 2338 13295 Core 3109 | . 24 . 91 32 . . . 44 90 30 144 23 127 98 94 55 228 334 . 69 20 57 . 11 . . . . 27 . 46 37 23 207 78 1120 Absorbed by Shields 5816 | . . . . . . . . . . 23 . . 11 . . 31 . . . . 15 199 . 90 . . . . . 136 646 505 656 2290 712 502 Reduced by Siege Mode 1488 | . . . . . . . . . . . . . . . . . . . . . . . . . . . 42 . . . 67 . . . 97 1282 Redirected to Shielding 423 | . 6 . 20 8 . . . . . . . . . . . . 57 . . . . . . . . . . . . . . 46 47 151 . 88 Regen/Repaired (Parts) 3869 | . . . . . . . . . . . . . . . 55 . 48 . . . . . . . . . . . . 305 . . . 2426 542 493 Core Remaining (%) 66 | 100 . 90 . . . 69 . . . 70 . . . 44 . . . 16 . . . 85 . . . . . . 96 . 96 . . 58 . 8 Volleys Fired 1560 | . 26 14 66 8 . . . 44 70 20 72 35 48 58 38 51 79 109 7 . 16 34 4 21 . 9 23 6 19 41 145 25 49 151 74 198 Largest 2 | . 2 2 2 2 . . . 2 2 2 2 2 2 2 2 2 1 2 2 . 2 2 1 2 . 2 2 1 1 2 2 2 2 2 2 2 Hottest 300 | . 100 120 143 143 . . . 160 140 122 122 70 40 162 162 162 81 151 140 . 90 188 7 188 . 188 188 20 61 155 188 174 174 300 140 300 Shots Fired 2540 | . 52 28 127 16 . . . 84 137 39 115 67 140 92 53 76 93 155 14 . 28 48 4 27 . 17 38 6 20 44 215 48 92 254 108 303 Gun 1594 | . 52 20 62 8 . . . 78 124 38 89 51 121 82 35 53 59 120 14 . 24 35 . 15 . 16 26 . . 3 173 47 90 98 12 49 Cannon 632 | . . 8 61 8 . . . . 13 . . . . . . . . . . . . . . . . . 5 . 5 25 10 . . 152 93 252 Launcher 44 | . . . 4 . . . . 6 . 1 . 1 . 2 . . 4 21 . . . . . . . . . . . . . . 2 . 3 . Special 270 | . . . . . . . . . . . 26 15 19 8 18 23 30 14 . . 4 13 4 12 . 1 7 6 15 16 32 1 . 4 . 2 Kinetic 505 | . . . . . . . . 16 . . . . . . . . . . . . 12 3 . . . . 5 . 5 25 25 . 12 87 101 214 Thermal 1755 | . 52 28 123 16 . . . 62 137 38 89 51 121 82 35 53 59 133 14 . 13 32 . 15 . 16 26 6 . 3 167 47 78 166 4 89 Explosive 36 | . . . 4 . . . . 6 . 1 . 1 . 2 . . 4 13 . . . . . . . . . . . . . . 2 . 3 . Electromagnetic 8 | . . . . . . . . . . . . . . . . . . 8 . . . . . . . . . . . . . . . . . . Robot Hit Streak 34 | . 9 5 14 11 . . . 19 12 7 9 15 25 10 14 12 9 30 31 . 13 12 16 34 . 4 7 4 6 9 14 8 16 27 11 31 Robot Miss Streak 23 | . 4 4 3 4 . . . 4 5 4 3 1 3 4 5 4 5 2 1 . 2 2 . 2 . 2 5 1 4 2 13 2 4 23 11 13 Penetration Max 3 | . . . . . . . . . . . . . . . . . . . . . . . . . . . . . . 1 1 . 1 3 1 2 Secondary Targets 23 | . . . . . . . . 2 . . 1 1 3 4 . . . 1 . . 1 . . . . 1 . . . . 5 1 1 2 . . Max Gunslinging Chain 1 | . . . . . . . . 1 . . 1 1 1 1 . . . 1 . . 1 . . . . 1 . . . . 1 1 1 1 . . Autonomous 97 | . . . . . . . . 8 . . . 15 60 . . . 14 . . . . . . . . . . . . . . . . . . . Shots Hit Robots 1746 | . 33 14 73 9 . . . 65 80 20 76 50 117 55 38 46 59 110 12 . 22 36 4 18 . 11 17 5 12 28 142 34 61 178 58 263 Core Hits 945 | . 16 8 48 3 . . . 48 50 11 33 19 43 23 6 9 24 72 3 . 7 11 . 4 . 8 6 3 . 7 51 16 58 129 81 148 Critical Kills 97 | . . . . . . . . . . . . . . 6 1 4 1 2 . . . . . . . . . . . . 4 1 11 39 7 21 Critical Parts Destroyed 147 | . . . . . . . . . . . . . . 9 5 6 5 2 . . 1 1 . . . . . . . . 13 4 10 32 3 56 Critical Strikes 348 | . 3 . 6 . . . . . 7 2 4 . 3 16 6 10 6 7 2 . 2 1 . . . . . . . 4 23 5 21 89 15 116 Burn 32 | . 3 . 6 . . . . . 7 2 4 . 3 . . . . 3 2 . 1 . . . . . . . . . 1 . . . . . Meltdown 8 | . . . . . . . . . . . . . . . . . . . . . . . . . . . . . . . . . . 6 . 2 Destroy 288 | . . . . . . . . . . . . . . 16 6 10 6 4 . . 1 1 . . . . . . . . 22 5 21 83 11 102 Blast 20 | . . . . . . . . . . . . . . . . . . . . . . . . . . . . . . 4 . . . . 4 12 Melee Attacks 11 | . . . . . . . . . . . . . . . . . . . . . 1 1 . . . . . . . . 9 . . . . . Impact 11 | . . . . . . . . . . . . . . . . . . . . . 1 1 . . . . . . . . 9 . . . . . Slashing . | . . . . . . . . . . . . . . . . . . . . . . . . . . . . . . . . . . . . . Piercing . | . . . . . . . . . . . . . . . . . . . . . . . . . . . . . . . . . . . . . Sneak Attacks . | . . . . . . . . . . . . . . . . . . . . . . . . . . . . . . . . . . . . . Combat Hostiles . | . . . . . . . . . . . . . . . . . . . . . . . . . . . . . . . . . . . . . Follow-up Attacks . | . . . . . . . . . . . . . . . . . . . . . . . . . . . . . . . . . . . . . Damage Inflicted 59619 | . 508 228 2419 195 . . . 2073 1831 640 1302 1019 2585 1492 596 721 1763 5095 270 . 550 697 . 226 . 310 497 69 . 664 3935 1183 2517 8100 3026 15108 Guns 26719 | . 508 113 1081 86 . . . 1433 1612 408 1302 797 2585 1122 596 721 1052 2035 270 . 530 645 . 226 . 310 408 . . 73 3223 1183 1799 1527 134 940 Cannons 24179 | . . 88 642 104 . . . . 191 . . . . . . . . . . . . . . . . . 89 . . 579 186 . . 6548 1621 14131 Explosions 7682 | . . . 626 . . . . 640 . 232 . 222 . 370 . . 711 2924 . . . . . . . . . . . . . . 686 . 1271 . Melee 469 | . . . . . . . . . . . . . . . . . . . . . . 52 . . . . . . . . 417 . . . . . Ramming 227 | . . 27 70 5 . . . . 28 . . . . . . . . . . . . . . . . . . . . 12 10 . 32 13 . 30 Kinetic 11874 | . . . . . . . . 130 . . . . . . . . . . . . 322 44 . . . . 89 . . 579 476 . 175 1020 1755 7284 Thermal 39367 | . 508 201 1723 190 . . . 1303 1803 408 1302 797 2585 1122 596 721 1052 2171 270 . 228 601 . 226 . 310 408 69 . 73 3032 1183 1624 7067 . 7794 Explosive 6546 | . . . 626 . . . . 640 . 232 . 222 . 370 . . 711 1788 . . . . . . . . . . . . . . 686 . 1271 . Electromagnetic 1136 | . . . . . . . . . . . . . . . . . . 1136 . . . . . . . . . . . . . . . . . . Impact 469 | . . . . . . . . . . . . . . . . . . . . . . 52 . . . . . . . . 417 . . . . . Slashing . | . . . . . . . . . . . . . . . . . . . . . . . . . . . . . . . . . . . . . Piercing . | . . . . . . . . . . . . . . . . . . . . . . . . . . . . . . . . . . . . . Highest Corruption 37 | . . . . . . . . . . . 4 4 10 11 . . 9 26 . 15 16 16 . . 1 1 5 5 5 3 37 2 3 9 1 13 Average Corruption 10 | . . . . . . . . . . . 3 4 9 11 . . 4 21 . 10 15 16 . . 1 1 2 5 5 2 25 1 2 7 1 5 Corruption Purged 40 | . . . . . . . . . . . . . . . . . . . . . . . . . . . . . . . . . . . . 40 Corruption Blocked 24 | . . . . . . . . . . . . . . . . . . . . . . . . . . . . . . . 24 . . . . . Effects 628 | . . . . . . . . . . . 10 27 45 38 . . 40 70 . 5 21 122 . . 1 5 10 6 18 2 111 . 7 50 1 39 Message Errors 138 | . . . . . . . . . . . . 10 12 6 . . 11 10 . 1 8 24 . . . . 5 1 2 2 23 . . 12 1 10 Matter Fused 161 | . . . . . . . . . . . 5 7 13 9 . . 10 18 . 1 5 44 . . . 2 1 1 3 . 23 . 1 8 . 10 Heat Flow Errors 65 | . . . . . . . . . . . 1 . 5 8 . . 4 9 . 1 2 12 . . . 1 . 2 2 . 10 . 2 2 . 4 Energy Discharges 88 | . . . . . . . . . . . 3 5 6 5 . . 3 11 . 1 2 15 . . . 1 1 1 4 . 21 . 1 5 . 3 Parts Rejected 7 | . . . . . . . . . . . . . 1 1 . . . . . . . 1 . . . . . . . . 2 . . 2 . . Data Loss (minor) 74 | . . . . . . . . . . . . 5 3 3 . . 6 9 . . 3 18 . . 1 . 2 . 2 . 10 . 2 5 . 5 Data Loss (major) 29 | . . . . . . . . . . . 1 . 1 2 . . 2 3 . 1 1 4 . . . 1 . 1 3 . . . . 6 . 3 Misfires 20 | . . . . . . . . . . . . . 3 2 . . 2 3 . . . . . . . . 1 . 1 . 5 . . 2 . 1 Alerts 15 | . . . . . . . . . . . . . . 1 . . 1 2 . . . 3 . . . . . . 1 . 3 . . 3 . 1 Misdirections 5 | . . . . . . . . . . . . . 1 . . . . . . . . . . . . . . . . . 4 . . . . . Weapon Failures 26 | . . . . . . . . . . . . . . 1 . . 1 5 . . . 1 . . . . . . . . 10 . 1 5 . 2 Overload Shots 2 | . . . . . . . . . . . 2 . . . . . . . . . . . . . . . . . . . . . . . . . Overflow Damage 2499 | . . . 38 . . . . . . 3 . . . 122 . . 15 95 . . . . . . . . . 8 . 62 52 . . 598 22 1484 Projectiles 2183 | . . . 9 . . . . . . . . . . . . . . . . . . . . . . . . 8 . 62 . . . 598 22 1484 Explosions 264 | . . . 29 . . . . . . 3 . . . 122 . . 15 95 . . . . . . . . . . . . . . . . . . Melee 52 | . . . . . . . . . . . . . . . . . . . . . . . . . . . . . . . 52 . . . . . Knockbacks 73 | . . . . . . . . . . . . . . . . . . . . . . . . . . . . . . 2 4 . 1 8 12 46 Impact 1 | . . . . . . . . . . . . . . . . . . . . . . . . . . . . . . . . . 1 . . . Kinetic 72 | . . . . . . . . . . . . . . . . . . . . . . . . . . . . . . 2 4 . . 8 12 46 Secondary . | . . . . . . . . . . . . . . . . . . . . . . . . . . . . . . . . . . . . . Self-Inflicted Damage 646 | . . . 19 . . . . 71 . 40 . 58 . . . . 96 125 . . . . . . . . . . . . . . . . 237 . Shots 21 | . . . 1 . . . . 3 . 1 . 2 . . . . 2 6 . . . . . . . . . . . . . . . . 6 . Rammed 28 | 1 . 13 5 1 . . . . 4 . . . . . . . . . . . . . . . . . . . . 1 2 . . . . 1 Targets Rammed 38 | 1 . 13 13 1 . . . . 4 . . . . . . . . . . . . . . . . . . . . 1 2 . 1 1 . 1 Kicked 9 | . . . 7 . . . . . . . . . . . . . . . . . . . . . . . . . . . . . 1 1 . . Crushed 1 | . . . 1 . . . . . . . . . . . . . . . . . . . . . . . . . . . . . . . . . Highest Temperature 391 | . 391 240 288 172 . . . 217 6 . 261 64 216 312 . . 226 271 231 191 229 255 . 141 . 132 178 126 200 132 370 192 153 201 198 198 Average Temperature 93 | . 178 106 72 88 . . . 89 4 . 82 16 58 126 . . 45 89 124 103 58 93 . 38 . 17 41 55 102 27 82 88 58 120 71 117 Received Heat Transfer 5630 | . 66 . 219 36 . . . 477 306 90 204 342 397 180 60 177 78 279 27 . 81 163 18 43 . 18 27 . 42 4 111 70 76 427 113 1499 Effects 13 | . 4 . . . . . . . . . . . . 2 . . . . 1 . . . . . . . . . . . 5 . . 1 . . Shutdowns 1 | . 1 . . . . . . . . . . . . . . . . . . . . . . . . . . . . . . . . . . . Energy Bleed 4 | . 1 . . . . . . . . . . . . . . . . . 1 . . . . . . . . . . . 1 . . 1 . . Interference 6 | . . . . . . . . . . . . . . 2 . . . . . . . . . . . . . . . . 4 . . . . . Matter Decay 1 | . 1 . . . . . . . . . . . . . . . . . . . . . . . . . . . . . . . . . . . Short Circuit 1 | . 1 . . . . . . . . . . . . . . . . . . . . . . . . . . . . . . . . . . . Siege Activations 20 | . . . . . . . . . . . . . . . . . . . . . . 3 . . . 1 2 . . . 3 . . . 4 7 Total Turns 546 | . . . . . . . . . . . . . . . . . . . . . . 137 . . . 5 17 . . . 43 . . . 81 263 Longest Duration 118 | . . . . . . . . . . . . . . . . . . . . . . 118 . . . 5 15 . . . 29 . . . 30 98 Robots Corrupted 6 | . . . . . . . . . . . . . . . . . . 6 . . . . . . . . . . . . . . . . . . Combat Hostiles 6 | . . . . . . . . . . . . . . . . . . 6 . . . . . . . . . . . . . . . . . . Parts Fried 14 | . . . . . . . . . . . . . . . . . . 9 . . . . . . . . . . . . 2 . . 2 1 . Impact Corruptions 3 | . . . . . . . . . . . . . . . . . . . . . . . . . . . . . . . 3 . . . . . Robots Melted 17 | . 1 . . . . . . . . 1 1 1 1 . . 2 . . . . . . . . . . . . . . 2 . . 6 . 2 Combat Hostiles 17 | . 1 . . . . . . . . 1 1 1 1 . . 2 . . . . . . . . . . . . . . 2 . . 6 . 2 Parts Melted 88 | . 6 . 7 . . . . 4 4 1 7 3 7 3 4 7 1 6 2 . 2 1 . . . 1 . 1 . . 10 3 1 7 . . Heat Transferred 47183 | . 1665 518 3367 333 . . . 2499 3793 888 2616 1332 3904 1503 925 1110 1480 3996 592 . 444 814 . 181 . 407 444 185 . 74 3814 1184 1776 4920 . 2419 Parts Sabotaged 8 | . . . . . . . . . . . . . . . . . . . . . . . . 6 . . . . . . . . . 2 . . Parts Stolen 3 | . . . . . . . . . . . . . . . . . . . . . . . . . . . 3 . . . . . . . . . Parts Stripped . | . . . . . . . . . . . . . . . . . . . . . . . . . . . . . . . . . . . . . Power Chain Reactions . | . . . . . . . . . . . . . . . . . . . . . . . . . . . . . . . . . . . . . Missiles Intercepted 14 | . . . . . . . . . . . . . . . . . . . . . . . . . . . . . . . . . . . . 14 Alert | -11 -10 -10 -9 -9 -9 -8 -8 -8 -8 -8 -7 -7 -7 -7 -6 -6 -6 -6 -5 -5 -5 -5 -4 -4 -4 -4 -4 -4 -3 -3 -3 -2 -2 -2 -1 -1 ------- Run | Scr Mat Min Mat Min Exi Min Mat Gar Mat Gar Fac Gar Fac Gar Fac Gar Fac Gar Fac Was Fac Gar Fac Gar Fac Upp Upp Zhi Pro Res Tes Res Qua Sec Acc Com Peak Influence 1179 | . 206 79 887 379 . . . 809 666 597 342 578 476 812 507 532 514 960 552 193 99 567 312 444 236 . . . . 239 488 450 560 1179 1022 748 Initial 707 | . . 79 30 324 . . . 2 393 338 312 194 303 49 426 172 279 35 504 193 30 62 297 218 233 . . . . . 102 181 144 315 707 606 Average 372 | . 84 79 447 340 . . . 536 493 504 156 430 206 464 363 347 155 718 509 125 56 396 308 357 233 . . . . 104 161 315 426 651 835 517 Maximum Alert Level 4 | . 1 . 3 1 . . . 3 2 2 1 2 2 3 2 2 2 3 2 . . 2 1 2 1 . . . . 1 2 2 2 4 3 3 Low Security (%) 31 | 100 87 100 11 . . 100 100 7 . . 77 5 55 17 . 19 63 6 . 100 100 19 . . . . . . . 92 65 21 9 . . 37 Level 1 22 | . 12 . 19 100 . . . 2 15 9 22 19 31 32 71 47 18 10 . . . 15 100 70 100 . . . . 7 28 53 18 18 . . Level 2 35 | . . . 56 . . . . 74 84 90 . 74 13 18 28 32 18 6 100 . . 64 . 29 . . . . . . 6 24 72 43 13 58 Level 3 10 | . . . 12 . . . . 15 . . . . . 31 . . . 75 . . . . . . . . . . . . . . . 30 86 4 Level 4 . | . . . . . . . . . . . . . . . . . . . . . . . . . . . . . . . . . . 7 . . Level 5 . | . . . . . . . . . . . . . . . . . . . . . . . . . . . . . . . . . . . . . High Security . | . . . . . . . . . . . . . . . . . . . . . . . . . . . . . . . . . . . . . Max Security . | . . . . . . . . . . . . . . . . . . . . . . . . . . . . . . . . . . . . . Squads Dispatched 73 | . 4 . 6 . . . . . 2 . 11 . 5 . 1 . 5 . . . 2 . . . 1 . . . . 4 8 . 6 9 6 3 Investigation 15 | . 3 . 2 . . . . . . . 4 . 1 . . . 1 . . . . . . . 1 . . . . . 1 . 1 1 . . Extermination 19 | . . . . . . . . . . . 6 . 2 . . . 1 . . . 1 . . . . . . . . 2 3 . 1 1 1 1 Reinforcement 25 | . 1 . 3 . . . . . 2 . 1 . 1 . 1 . 3 . . . . . . . . . . . . 2 3 . 4 3 1 . Assault 10 | . . . 1 . . . . . . . . . 1 . . . . . . . . . . . . . . . . . 1 . . 4 1 2 Garrison 4 | . . . . . . . . . . . . . . . . . . . . . 1 . . . . . . . . . . . . . 3 . Intercept . | . . . . . . . . . . . . . . . . . . . . . . . . . . . . . . . . . . . . . Searches Triggered . | . . . . . . . . . . . . . . . . . . . . . . . . . . . . . . . . . . . . . Construction Impeded 3 | . . . 2 . . . . . . . . . . . . . 1 . . . . . . . . . . . . . . . . . . . Haulers Reinforced 8 | . . . . . . . . . . . 1 . 1 . 1 . . . . . . . . . . . . . . 1 . . 2 1 1 . Active Scanning Responses 1 | . . . . . . . . . . . . . . . . . . 1 . . . . . . . . . . . . . . . . . . Cargo Convoy Interrupts 1 | . . . . . . . . . . . . . 1 . . . . . . . . . . . . . . . . . . . . . . . Alert ID Control Effect 83 | . . . . . . . . . . . 16 3 2 4 7 8 3 . . . . 5 3 16 . 2 2 . 7 4 1 . . . . . Stealth | -11 -10 -10 -9 -9 -9 -8 -8 -8 -8 -8 -7 -7 -7 -7 -6 -6 -6 -6 -5 -5 -5 -5 -4 -4 -4 -4 -4 -4 -3 -3 -3 -2 -2 -2 -1 -1 --------- Run | Scr Mat Min Mat Min Exi Min Mat Gar Mat Gar Fac Gar Fac Gar Fac Gar Fac Gar Fac Was Fac Gar Fac Gar Fac Upp Upp Zhi Pro Res Tes Res Qua Sec Acc Com Distress Signals 24 | . . . 3 . . . . . 1 . 5 . . . 2 . 1 . . . 1 . . . . . . . . 2 . . . . . 9 Communications Jammed 459 | . . . . . . . . . . . . . 54 20 42 . 55 . . . . . . . . . . . . 141 88 2 7 49 1 . Distress Signals 458 | . . . . . . . . . . . . . 53 20 42 . 55 . . . . . . . . . . . . 141 88 2 7 49 1 . Times Spotted 803 | . 11 . 49 2 . . 5 23 36 8 50 22 42 32 19 32 35 34 1 5 6 24 4 33 . 7 12 . 21 23 52 13 31 75 36 60 Peak Tracking Total 10 | . 6 . 6 2 . . 6 8 6 6 6 7 10 6 4 8 7 9 1 5 2 2 3 8 . 3 4 . 7 6 5 5 7 7 6 8 Tactical Retreats 44 | . . . 2 . . . . . 3 1 2 . 1 3 2 4 3 2 . 1 . 2 . . . 1 . . . . 4 2 5 3 2 1 Traps | -11 -10 -10 -9 -9 -9 -8 -8 -8 -8 -8 -7 -7 -7 -7 -6 -6 -6 -6 -5 -5 -5 -5 -4 -4 -4 -4 -4 -4 -3 -3 -3 -2 -2 -2 -1 -1 ------- Run | Scr Mat Min Mat Min Exi Min Mat Gar Mat Gar Fac Gar Fac Gar Fac Gar Fac Gar Fac Was Fac Gar Fac Gar Fac Upp Upp Zhi Pro Res Tes Res Qua Sec Acc Com Traps Triggered 78 | . . . . 1 . . . 7 . 6 2 11 3 6 . 6 9 7 1 . 1 11 . 1 1 . . . . 1 . 1 . 1 1 1 Indirectly . | . . . . . . . . . . . . . . . . . . . . . . . . . . . . . . . . . . . . . Trap Hack Attempts . | . . . . . . . . . . . . . . . . . . . . . . . . . . . . . . . . . . . . . Triggered . | . . . . . . . . . . . . . . . . . . . . . . . . . . . . . . . . . . . . . Disarmed . | . . . . . . . . . . . . . . . . . . . . . . . . . . . . . . . . . . . . . Reprogrammed . | . . . . . . . . . . . . . . . . . . . . . . . . . . . . . . . . . . . . . Reused . | . . . . . . . . . . . . . . . . . . . . . . . . . . . . . . . . . . . . . Traps Extracted . | . . . . . . . . . . . . . . . . . . . . . . . . . . . . . . . . . . . . . Installed . | . . . . . . . . . . . . . . . . . . . . . . . . . . . . . . . . . . . . . Triggered 4 | . . . . . . . . . . . . . . . . . . . . . . . . . . . . . 4 . . . . . . . Machines | -11 -10 -10 -9 -9 -9 -8 -8 -8 -8 -8 -7 -7 -7 -7 -6 -6 -6 -6 -5 -5 -5 -5 -4 -4 -4 -4 -4 -4 -3 -3 -3 -2 -2 -2 -1 -1 ---------- Run | Scr Mat Min Mat Min Exi Min Mat Gar Mat Gar Fac Gar Fac Gar Fac Gar Fac Gar Fac Was Fac Gar Fac Gar Fac Upp Upp Zhi Pro Res Tes Res Qua Sec Acc Com Machines Disabled 91 | . . . 3 . . . . 2 1 1 4 4 2 4 3 4 10 3 . . . 4 . 5 . . . . . . 17 . 6 9 6 3 Max in Single Turn 2 | . . . 1 . . . . 1 1 1 . 1 1 1 . 1 2 1 . . . 1 . 1 . . . . . . 1 . 1 1 1 1 Garrison Access 3 | . . . . . . . . . . . . . 1 . . . . . . . . . . . . . . . . . 1 . . . 1 . Garrison Relay 28 | . . . . . . . . 2 . 1 . 4 . 4 . 4 . 3 . . . 5 . 5 . . . . . . . . . . . . Machines Sabotaged . | . . . . . . . . . . . . . . . . . . . . . . . . . . . . . . . . . . . . . Garrisons Compromised . | . . . . . . . . . . . . . . . . . . . . . . . . . . . . . . . . . . . . . Overloaded Fab Kills . | . . . . . . . . . . . . . . . . . . . . . . . . . . . . . . . . . . . . . Hacking | -11 -10 -10 -9 -9 -9 -8 -8 -8 -8 -8 -7 -7 -7 -7 -6 -6 -6 -6 -5 -5 -5 -5 -4 -4 -4 -4 -4 -4 -3 -3 -3 -2 -2 -2 -1 -1 --------- Run | Scr Mat Min Mat Min Exi Min Mat Gar Mat Gar Fac Gar Fac Gar Fac Gar Fac Gar Fac Was Fac Gar Fac Gar Fac Upp Upp Zhi Pro Res Tes Res Qua Sec Acc Com Machines Accessed 85 | . 3 1 9 1 2 . 2 . 3 . 9 . 4 . 3 . 10 . . . 5 . 2 . 3 1 . 4 . 2 7 3 2 5 4 . Terminals 56 | . 3 . 9 . . . 1 . 2 . 4 . 2 . 2 . 5 . . . 4 . 1 . 3 1 . . . 2 6 2 2 4 3 . Fabricators 8 | . . . . . . . . . . . 4 . . . . . 3 . . . . . . . . . . . . . 1 . . . . . Repair Stations 2 | . . . . . . . . . . . . . 1 . . . 1 . . . . . . . . . . . . . . . . . . . Recycling Units . | . . . . . . . . . . . . . . . . . . . . . . . . . . . . . . . . . . . . . Scanalyzers 2 | . . . . . . . . . . . . . . . . . . . . . . . . . . . . . . . . 1 . 1 . . Garrison Access 9 | . . . . . . . 1 . 1 . 1 . 1 . 1 . 1 . . . 1 . 1 . . . . . . . . . . . 1 . Total Hacks 215 | . 10 1 35 1 2 . 3 . 9 . 21 . 14 . 4 . 29 . . . 8 . 2 . 9 1 . 17 . 4 17 6 4 11 7 . Successful 115 | . 5 1 16 1 2 . 1 . 3 . 13 . 4 . 3 . 19 . . . 5 . 2 . 4 1 . 17 . 2 5 5 . 3 3 . Failed 99 | . 4 . 19 . . . 2 . 6 . 8 . 10 . 1 . 10 . . . 3 . . . 5 . . . . 2 12 1 4 8 4 . Catastrophic 18 | . 1 . . . . . . . . . . . 4 . . . 3 . . . 1 . . . 2 . . . . . 3 . 2 . 2 . Database Lockouts 1 | . 1 . . . . . . . . . . . . . . . . . . . . . . . . . . . . . . . . . . . Manual 78 | . 9 . 27 . 1 . 2 . 4 . 4 . 3 . . . 16 . . . . . . . 4 . . . . . 3 . 3 2 . . Terminals 149 | . 10 . 35 . . . 2 . 8 . 9 . 7 . 3 . 18 . . . 7 . 1 . 9 1 . . . 4 13 3 4 9 6 . Fabricators 23 | . . . . . . . . . . . 11 . . . . . 8 . . . . . . . . . . . . . 4 . . . . . Repair Stations 5 | . . . . . . . . . . . . . 3 . . . 2 . . . . . . . . . . . . . . . . . . . Recycling Units . | . . . . . . . . . . . . . . . . . . . . . . . . . . . . . . . . . . . . . Scanalyzers 5 | . . . . . . . . . . . . . . . . . . . . . . . . . . . . . . . . 3 . 2 . . Garrison Access 12 | . . . . . . . 1 . 1 . 1 . 4 . 1 . 1 . . . 1 . 1 . . . . . . . . . . . 1 . Terminal Hacks 72 | . 3 1 13 1 2 . . . 1 . 3 . 2 . 2 . 7 . . . 4 . 1 . 4 1 . 17 . 2 3 2 . 1 2 . Record 7 | . . . . . 1 . . . . . . . . . . . . . . . . . . . . 1 . 5 . . . . . . . . Part Schematic 4 | . . . . . . . . . . . . . . . . . . . . . . . . . . . . 4 . . . . . . . . Robot Schematic 2 | . . . 2 . . . . . . . . . . . . . . . . . . . . . . . . . . . . . . . . . Robot Analysis 8 | . 2 . 2 . . . . . . . . . . . . . . . . . . . . . . . . 4 . . . . . . . . Prototype ID Bank 11 | . 1 . 2 . . . . . . . . . . . . . . . . . 1 . . . 2 . . 4 . . 1 . . . . . Open Door 3 | . . 1 . 1 . . . . . . . . . . . . . . . . . . . . . . . . . . . 1 . . . . Open DSF 1 | . . . . . . . . . . . . . . . . . . . . . . . 1 . . . . . . . . . . . . . Branch Access Points 6 | . . . 2 . . . . . . . . . 1 . . . . . . . 1 . . . 1 . . . . 1 . . . . . . Emergency Access Points 2 | . . . 1 . . . . . . . . . . . . . . . . . . . . . . . . . . 1 . . . . . . Terminal Index 5 | . . . 1 . . . . . . . 1 . . . . . 2 . . . . . . . 1 . . . . . . . . . . . Fabricator Index 1 | . . . . . . . . . . . . . . . . . 1 . . . . . . . . . . . . . . . . . . . Repair Station Index 1 | . . . 1 . . . . . . . . . . . . . . . . . . . . . . . . . . . . . . . . . Recycling Unit Index 1 | . . . . . . . . . . . . . . . 1 . . . . . . . . . . . . . . . . . . . . . Garrison Index 4 | . . . 1 . . . . . . . . . 1 . 1 . 1 . . . . . . . . . . . . . . . . . . . Unreport Threat 9 | . . . . . . . . . 1 . . . . . . . 3 . . . . . . . . . . . . . 2 . . 1 2 . Hauler Manifests 2 | . . . 1 . . . . . . . . . . . . . . . . . 1 . . . . . . . . . . . . . . . Zone Layout 4 | . . . . . . . . . . . 2 . . . . . . . . . 1 . . . . . . . . . . 1 . . . . EX-Prototype ID Bank 1 | . . . . . 1 . . . . . . . . . . . . . . . . . . . . . . . . . . . . . . . Fabricator Hacks 15 | . . . . . . . . . . . 8 . . . . . 5 . . . . . . . . . . . . . 2 . . . . . Load Schematic 8 | . . . . . . . . . . . 4 . . . . . 3 . . . . . . . . . . . . . 1 . . . . . Build 7 | . . . . . . . . . . . 4 . . . . . 2 . . . . . . . . . . . . . 1 . . . . . Repair Station Hacks 3 | . . . . . . . . . . . . . 1 . . . 2 . . . . . . . . . . . . . . . . . . . Scan Component 2 | . . . . . . . . . . . . . 1 . . . 1 . . . . . . . . . . . . . . . . . . . Repair 1 | . . . . . . . . . . . . . . . . . 1 . . . . . . . . . . . . . . . . . . . Recycling Unit Hacks . | . . . . . . . . . . . . . . . . . . . . . . . . . . . . . . . . . . . . . Scanalyzer 5 | . . . . . . . . . . . . . . . . . . . . . . . . . . . . . . . . 3 . 2 . . Insert Component 5 | . . . . . . . . . . . . . . . . . . . . . . . . . . . . . . . . 3 . 2 . . Garrison Access Hacks 9 | . . . . . . . 1 . 1 . 1 . 1 . 1 . 1 . . . 1 . 1 . . . . . . . . . . . 1 . Unlock Access 8 | . . . . . . . 1 . 1 . 1 . 1 . 1 . 1 . . . 1 . 1 . . . . . . . . . . . . . Seal Access 1 | . . . . . . . . . . . . . . . . . . . . . . . . . . . . . . . . . . . 1 . Unauthorized Hacks 11 | . 2 . 3 . . . . . 1 . 1 . . . . . 4 . . . . . . . . . . . . . . . . . . . Terminals 11 | . 2 . 3 . . . . . 1 . 1 . . . . . 4 . . . . . . . . . . . . . . . . . . . Assimilate 1 | . 1 . . . . . . . . . . . . . . . . . . . . . . . . . . . . . . . . . . . Botnet 7 | . 1 . 2 . . . . . . . 1 . . . . . 3 . . . . . . . . . . . . . . . . . . . Operators 3 | . . . 1 . . . . . 1 . . . . . . . 1 . . . . . . . . . . . . . . . . . . . Fabricators . | . . . . . . . . . . . . . . . . . . . . . . . . . . . . . . . . . . . . . Repair Stations . | . . . . . . . . . . . . . . . . . . . . . . . . . . . . . . . . . . . . . Recycling Units . | . . . . . . . . . . . . . . . . . . . . . . . . . . . . . . . . . . . . . Scanalyzers . | . . . . . . . . . . . . . . . . . . . . . . . . . . . . . . . . . . . . . Garrison Access . | . . . . . . . . . . . . . . . . . . . . . . . . . . . . . . . . . . . . . Data Cores Recovered 1 | . . . . . . . . . . . 1 . . . . . . . . . . . . . . . . . . . . . . . . . Used . | . . . . . . . . . . . . . . . . . . . . . . . . . . . . . . . . . . . . . Hacking Detections 65 | . 3 . 9 . . . 1 . 3 . 8 . 4 . 3 . 8 . . . 4 . 1 . 3 . . . . 2 6 1 2 4 3 . Full Trace Events 14 | . 2 . 2 . . . . . . . 4 . 1 . . . 1 . . . . . . . 1 . . . . . 1 . 1 1 . . Feedback Events 1 | . . . . . . . . . . . . . 1 . . . . . . . . . . . . . . . . . . . . . . . Corruption 1 | . . . . . . . . . . . . . 1 . . . . . . . . . . . . . . . . . . . . . . . Feedback Blocked . | . . . . . . . . . . . . . . . . . . . . . . . . . . . . . . . . . . . . . Robot Schematics Acquired 5 | . . . 2 . . . . . . . . . . . . . . . . . . . . . . . . . . . 3 . . . . . Robots Built 8 | . . . . . . . . . . . 4 . . . . . 4 . . . . . . . . . . . . . . . . . . . Authchips . | . . . . . . . . . . . . . . . . . . . . . . . . . . . . . . . . . . . . . Time 431 | . . . . . . . . . . . 283 . . . . . 148 . . . . . . . . . . . . . . . . . . . Total Robot Build Rating 17 | . . . . . . . . . . . 4 . . . . . 13 . . . . . . . . . . . . . . . . . . . Part Schematics Acquired 45 | . . . . . . . . . . . . . . . . . . . . . . . . . . . . 4 . . 39 . 2 . . . Parts Built 2 | . . . . . . . . . . . . . . . . . . . . . . . . . . . . . . . 2 . . . . . Authchips . | . . . . . . . . . . . . . . . . . . . . . . . . . . . . . . . . . . . . . Time 128 | . . . . . . . . . . . . . . . . . . . . . . . . . . . . . . . 128 . . . . . Total Part Build Rating 16 | . . . . . . . . . . . . . . . . . . . . . . . . . . . . . . . 16 . . . . . Parts Repaired 1 | . . . . . . . . . . . . . . . . . 1 . . . . . . . . . . . . . . . . . . . Time 44 | . . . . . . . . . . . . . . . . . 44 . . . . . . . . . . . . . . . . . . . Parts Recycled . | . . . . . . . . . . . . . . . . . . . . . . . . . . . . . . . . . . . . . Recycled Matter . | . . . . . . . . . . . . . . . . . . . . . . . . . . . . . . . . . . . . . Retrieved Matter . | . . . . . . . . . . . . . . . . . . . . . . . . . . . . . . . . . . . . . Retrieved Components . | . . . . . . . . . . . . . . . . . . . . . . . . . . . . . . . . . . . . . Parts Scanalyzed . | . . . . . . . . . . . . . . . . . . . . . . . . . . . . . . . . . . . . . Part Schematics Acquired . | . . . . . . . . . . . . . . . . . . . . . . . . . . . . . . . . . . . . . Parts Damaged . | . . . . . . . . . . . . . . . . . . . . . . . . . . . . . . . . . . . . . Bothacking | -11 -10 -10 -9 -9 -9 -8 -8 -8 -8 -8 -7 -7 -7 -7 -6 -6 -6 -6 -5 -5 -5 -5 -4 -4 -4 -4 -4 -4 -3 -3 -3 -2 -2 -2 -1 -1 ------------ Run | Scr Mat Min Mat Min Exi Min Mat Gar Mat Gar Fac Gar Fac Gar Fac Gar Fac Gar Fac Was Fac Gar Fac Gar Fac Upp Upp Zhi Pro Res Tes Res Qua Sec Acc Com Used RIF Installer 8 | . . . . . . . . 1 . 1 . 1 . 1 . 1 . 1 . . . 1 . 1 . . . . . . . . . . . . Command Fork 1 | . . . . . . . . . . . . . . . . . . 1 . . . . . . . . . . . . . . . . . . Threat Obfuscator 1 | . . . . . . . . . . . . . . . . . . . . . . . . 1 . . . . . . . . . . . . Signal Jammer 1 | . . . . . . . . . . . . 1 . . . . . . . . . . . . . . . . . . . . . . . . Zone Cloak 2 | . . . . . . . . . . . . . . 1 . . . . . . . 1 . . . . . . . . . . . . . . Alert ID Control 1 | . . . . . . . . . . 1 . . . . . . . . . . . . . . . . . . . . . . . . . . Structural Interface 1 | . . . . . . . . . . . . . . . . 1 . . . . . . . . . . . . . . . . . . . . Robots Hacked 139 | . . . . . . . . . . . 13 8 10 6 12 14 14 1 . . 2 10 3 11 . 1 1 . 11 9 11 1 . 1 . . Non-combat 28 | . . . . . . . . . . . . . 6 . 2 . 6 . . . 1 . . . . 1 1 . . 4 6 1 . . . . Combat 111 | . . . . . . . . . . . 13 8 4 6 10 14 8 1 . . 1 10 3 11 . . . . 11 5 5 . . 1 . . Robot Hacks Applied 161 | . . . . . . . . . . . 13 9 13 6 12 15 17 1 . . 2 10 3 11 . 1 3 . 11 14 18 1 . 1 . . parse_system 9 | . . . . . . . . . . . . 1 . . . . 2 . . . . . . . . 1 1 . . 2 2 . . . . . no_distress 3 | . . . . . . . . . . . . . 1 . . . . . . . . . . . . . . . . 2 . . . . . . map_walls 1 | . . . . . . . . . . . . . . . . . 1 . . . . . . . . . . . . . . . . . . . find_fabricator 1 | . . . . . . . . . . . . . . . . . . . . . . . . . . . . . . 1 . . . . . . drop_inventory 4 | . . . . . . . . . . . . . 1 . 1 . 1 . . . . . . . . . . . . . 1 . . . . . ignore_parts 3 | . . . . . . . . . . . . . . . . . . . . . . . . . . . . . . . 3 . . . . . purge_threat 5 | . . . . . . . . . . . . . 2 . . . 2 . . . . . . . . . . . . . 1 . . . . . find_terminals 1 | . . . . . . . . . . . . . . . . . . . . . . . . . . . . . . 1 . . . . . . locate_traps 1 | . . . . . . . . . . . . . 1 . . . . . . . . . . . . . . . . . . . . . . . block_reporting 2 | . . . . . . . . . . . . . 1 . . . 1 . . . . . . . . . . . . . . . . . . . map_route 4 | . . . . . . . . . . . . . . . . . 1 . . . 1 . . . . . . . . 1 . 1 . . . . find_scanalyzer 1 | . . . . . . . . . . . . . . . . . . . . . . . . . . . . . . . 1 . . . . . disable_scanner 6 | . . . . . . . . . . . . . . . . . . . . . . . . . . . . . . . 5 . . 1 . . locate_prototypes 2 | . . . . . . . . . . . . . . . . . . . . . . . . . . . . . . . 2 . . . . . report_prototypes 1 | . . . . . . . . . . . . . . . . . . . . . . . . . . . . . . . 1 . . . . . report_schematics 2 | . . . . . . . . . . . . . . . . . . . . . . . . . . . . . . . 2 . . . . . find_shortcuts 1 | . . . . . . . . . . . . . . . . 1 . . . . . . . . . . . . . . . . . . . . link_complan 1 | . . . . . . . . . . . . . . . . . . . . . . . . 1 . . . . . . . . . . . . go_dormant 3 | . . . . . . . . . . . 2 . . . . . . . . . . . . . . . . . . 1 . . . . . . overwrite_iff 21 | . . . . . . . . . . . 2 4 . 2 1 4 . 1 . . . . 2 . . . 1 . 2 2 . . . . . . streamctrl_high 2 | . . . . . . . . . . . . . . . . . . . . . . 2 . . . . . . . . . . . . . . formatsys_low 8 | . . . . . . . . . . . . . 2 . 1 . 3 . . . . . . . . . . . . 2 . . . . . . formatsys_high 79 | . . . . . . . . . . . 9 4 5 4 9 10 6 . . . 1 8 1 10 . . 1 . 9 2 . . . . . . Relay Couplers Released 118 | . . . . . . . . 9 . 5 . 16 2 15 . 15 . 12 . . . 20 . 20 . . . . . . 2 . . . 2 . Machine Destruction 118 | . . . . . . . . 9 . 5 . 16 2 15 . 15 . 12 . . . 20 . 20 . . . . . . 2 . . . 2 . Attached 81 | . . . . . . . . 1 . . 7 5 7 4 5 9 4 2 . . 2 12 1 9 . . . . 4 4 4 . . . 1 . Fabnet Peak Effective % . | . . . . . . . . . . . . . . . . . . . . . . . . . . . . . . . . . . . . . Robots Rewired 4 | . . . . . . . . . . . . . . . . . . . 1 . . . . . . . . . . . 3 . . . . . Allies Hacked 4 | . . . . . . . . . . . . . 1 . . . . . . . . . . . . . 1 . . 2 . . . . . . Hacks Repelled . | . . . . . . . . . . . . . . . . . . . . . . . . . . . . . . . . . . . . . Allies | -11 -10 -10 -9 -9 -9 -8 -8 -8 -8 -8 -7 -7 -7 -7 -6 -6 -6 -6 -5 -5 -5 -5 -4 -4 -4 -4 -4 -4 -3 -3 -3 -2 -2 -2 -1 -1 -------- Run | Scr Mat Min Mat Min Exi Min Mat Gar Mat Gar Fac Gar Fac Gar Fac Gar Fac Gar Fac Was Fac Gar Fac Gar Fac Upp Upp Zhi Pro Res Tes Res Qua Sec Acc Com Total Allies 143 | . 1 4 . . . . . . . . 15 8 7 6 11 14 13 1 1 . 1 10 4 13 . . . . 14 11 6 . . . 3 . Largest Group 14 | . 1 3 3 . . . . . . . 4 4 3 4 6 7 9 2 1 1 1 6 3 9 7 6 3 1 9 14 10 . . . 3 . Highest-Rated Group 628 | . 10 40 40 . . . . . . . 78 93 121 100 236 286 228 51 30 30 29 308 154 405 335 288 147 49 458 628 575 . . . 374 . Highest-Rated Ally 156 | . 10 31 16 . . . . . . . 32 32 109 32 90 90 90 41 30 30 29 85 58 58 49 49 49 49 64 64 156 . . . 131 . Total Orders 17 | . . . . . . . . . . . . . 2 1 2 2 1 1 . . . 7 . . . . . . . 1 . . . . . . STAY 8 | . . . . . . . . . . . . . 1 1 . . . 1 . . . 5 . . . . . . . . . . . . . . FOLLOW 3 | . . . . . . . . . . . . . 1 . . . . . . . . 2 . . . . . . . . . . . . . . AID 3 | . . . . . . . . . . . . . . . 2 . . . . . . . . . . . . . . 1 . . . . . . DROP 1 | . . . . . . . . . . . . . . . . . 1 . . . . . . . . . . . . . . . . . . . EXPLORE 1 | . . . . . . . . . . . . . . . . 1 . . . . . . . . . . . . . . . . . . . . RETURN 1 | . . . . . . . . . . . . . . . . 1 . . . . . . . . . . . . . . . . . . . . Ally Attacks 828 | . . . 30 . . . . . . . 87 43 24 30 26 73 78 1 2 . 5 51 13 53 . 21 11 . 61 122 93 . . . 4 . Total Damage 25066 | . . . 272 . . . . . . . 2737 832 590 671 792 1588 2491 56 53 . 97 1596 499 1440 . 584 377 . 1876 3963 4500 . . . 52 . Kills 172 | . . . 5 . . . . . . . 20 4 2 8 8 12 18 . . . . 16 4 18 . 3 2 . 9 17 26 . . . . . Allies Corrupted 5 | . . . . . . . . . . . . . . . . . . . . . . . . . . . . . . 1 4 . . . . . Allies Melted 6 | . . . . . . . . . . . . . . 1 . 1 . . . . . 1 . . . . . . . . . . . . . 3 Intel | -11 -10 -10 -9 -9 -9 -8 -8 -8 -8 -8 -7 -7 -7 -7 -6 -6 -6 -6 -5 -5 -5 -5 -4 -4 -4 -4 -4 -4 -3 -3 -3 -2 -2 -2 -1 -1 ------- Run | Scr Mat Min Mat Min Exi Min Mat Gar Mat Gar Fac Gar Fac Gar Fac Gar Fac Gar Fac Was Fac Gar Fac Gar Fac Upp Upp Zhi Pro Res Tes Res Qua Sec Acc Com Robot Analysis Total 8 | . 2 . 2 . . . . . . . . . . . . . . . . . . . . . . . . 4 . . . . . . . . Derelict Logs Recovered 5 | . . 1 . 1 . . . . . . . . . . . . . . . . . . . . . 1 2 . . . . . . . . . Drone Launches 11 | . . . . . . . . . . . . . . 1 . 1 . . 2 7 . . . . . . . . . . . . . . . . Drone Recoveries 4 | . . . . . . . . . . . . . . . . 1 . . . 3 . . . . . . . . . . . . . . . . Exploration | -11 -10 -10 -9 -9 -9 -8 -8 -8 -8 -8 -7 -7 -7 -7 -6 -6 -6 -6 -5 -5 -5 -5 -4 -4 -4 -4 -4 -4 -3 -3 -3 -2 -2 -2 -1 -1 ------------- Run | Scr Mat Min Mat Min Exi Min Mat Gar Mat Gar Fac Gar Fac Gar Fac Gar Fac Gar Fac Was Fac Gar Fac Gar Fac Upp Upp Zhi Pro Res Tes Res Qua Sec Acc Com Turns Passed 36162 | 70 346 394 1637 364 932 53 91 1754 1376 856 2646 1486 1375 1103 980 946 1845 1424 104 156 507 2894 107 1273 160 702 725 281 852 988 2299 434 683 1517 1025 1777 Spaces Moved 16284 | 45 159 212 641 136 381 23 37 530 451 258 991 578 548 573 536 497 972 508 59 111 257 987 58 730 96 416 403 161 511 561 1332 233 402 699 483 709 Core 64 | 16 . . . . . . . . . . . . . . . . . 2 . . . . . . . . . . . . . . . . . 46 Treads 8124 | 29 159 123 220 136 381 23 37 530 451 258 84 . . . . . . 3 . . 1 913 58 730 96 416 403 161 511 561 737 . . . 444 659 Legs 2604 | . . 89 421 . . . . . . . . . . . . . . 126 . . . . . . . . . . . . 595 233 402 699 39 . Wheels 5488 | . . . . . . . . . . . 907 578 548 573 536 497 972 377 59 111 256 74 . . . . . . . . . . . . . . Hover . | . . . . . . . . . . . . . . . . . . . . . . . . . . . . . . . . . . . . . Flight . | . . . . . . . . . . . . . . . . . . . . . . . . . . . . . . . . . . . . . Fastest Speed 50 | 50 160 120 120 240 240 240 240 240 240 240 205 220 145 145 145 145 145 120 120 120 150 150 160 160 160 160 160 160 160 155 91 91 91 93 160 50 Average Speed 182 | 120 160 143 205 240 240 240 240 293 240 300 239 220 206 149 145 146 164 196 120 133 161 236 160 160 160 160 160 160 160 159 133 140 130 154 161 151 Slowest Speed 1950 | 160 160 160 260 240 240 240 240 320 240 560 560 220 235 160 145 160 175 1950 120 150 240 240 160 160 160 160 160 160 160 160 250 170 169 171 240 232 Overloaded Moves . | . . . . . . . . . . . . . . . . . . . . . . . . . . . . . . . . . . . . . Propulsion Burnouts . | . . . . . . . . . . . . . . . . . . . . . . . . . . . . . . . . . . . . . Robots Hopped . | . . . . . . . . . . . . . . . . . . . . . . . . . . . . . . . . . . . . . Cave-ins Triggered . | . . . . . . . . . . . . . . . . . . . . . . . . . . . . . . . . . . . . . Teleports 1 | . . . . . . . . . . . . . . . . . . . . . . . . . . . . . . . . . . 1 . . Spacefolds 1 | . . . . . . . . . . . . . . . . . . . . . . . . . . . . . . . . . . . . 1 Exploration Rate (%) 45 | 4 34 44 57 25 70 11 7 69 39 42 36 84 15 78 23 88 36 88 2 81 6 97 3 96 3 69 75 61 64 18 98 8 60 39 22 26 Regions Visited 36 Branch Regions 12 Pre-discovered Areas 4 | . . . . . 1 . . . . . . . . . . . . . . . . . . . . . . 3 . . . . . . . . Known Exits Taken 13 | . . . 1 . . . 1 . 1 . 1 . 1 . 1 . 1 . . . 1 . 1 . 1 . . . . 1 1 . . . 1 . Unknown Exits Taken 13 | 1 1 1 . 1 1 1 . . . . . . . . . . . . . . . . . . . 1 1 1 1 . . 1 1 1 . . Scrap Searched 4 | . . . . . . . . . . . . . . . . . . . . . . . . . . 1 2 . 1 . . . . . . . Spaces Dug 120 | . . . . . . . . 34 . . . . . 21 . . 22 . . . 1 . . . . . . . . 4 4 . 1 . 26 7 Terrain Destroyed 673 | . . . 45 . . . . 73 1 9 . 5 1 37 1 . 68 91 . . 2 . . . . 2 14 . 5 15 32 5 24 76 100 67 Melee 1 | . . . . . . . . . . . . . . . . . . . . . 1 . . . . . . . . . . . . . . . Projectile 220 | . . . . . . . . . 1 . . . 1 3 1 . 1 5 . . 1 . . . . 2 14 . 5 15 26 5 15 48 35 42 AOE 393 | . . . 45 . . . . 73 . 9 . 5 . 34 . . 67 86 . . . . . . . . . . . . . . 9 . 65 . Terrain Rammed . | . . . . . . . . . . . . . . . . . . . . . . . . . . . . . . . . . . . . . Walls Destroyed . | . . . . . . . . . . . . . . . . . . . . . . . . . . . . . . . . . . . . . Machines Disabled . | . . . . . . . . . . . . . . . . . . . . . . . . . . . . . . . . . . . . . Actions | -11 -10 -10 -9 -9 -9 -8 -8 -8 -8 -8 -7 -7 -7 -7 -6 -6 -6 -6 -5 -5 -5 -5 -4 -4 -4 -4 -4 -4 -3 -3 -3 -2 -2 -2 -1 -1 --------- Run | Scr Mat Min Mat Min Exi Min Mat Gar Mat Gar Fac Gar Fac Gar Fac Gar Fac Gar Fac Was Fac Gar Fac Gar Fac Upp Upp Zhi Pro Res Tes Res Qua Sec Acc Com Total 20619 | 60 199 268 815 159 402 22 38 643 600 304 1161 750 733 729 692 649 1153 767 77 118 319 1522 72 820 103 437 456 177 543 642 1712 308 502 965 619 1083 Wait 1014 | . 5 6 52 4 . . . 10 50 2 35 6 34 23 86 19 42 19 3 . 13 365 7 9 8 5 10 . 1 8 53 31 23 15 27 43 Move 16250 | 44 158 211 640 135 380 22 37 529 451 257 991 577 548 572 535 496 972 507 59 110 257 986 57 728 95 415 402 160 510 560 1331 232 401 698 482 705 Hop . | . . . . . . . . . . . . . . . . . . . . . . . . . . . . . . . . . . . . . Pick Up 371 | 9 6 10 14 5 6 . . 12 1 6 18 15 15 10 6 9 12 37 . 1 11 35 . 13 . 2 7 3 4 5 39 4 7 17 5 27 Fast Attach 180 | . . . 7 1 . . 1 4 10 . 8 2 10 3 3 4 5 6 3 1 4 7 . 16 . . 1 3 1 7 16 3 3 20 7 24 Attach 241 | 6 2 4 4 1 2 . . 10 . 1 12 8 24 5 6 5 11 12 2 3 6 15 2 5 . . 5 2 3 4 24 4 6 14 3 30 Detach 48 | . . . 2 . . . . 3 . . 1 1 9 . . 1 3 . . . 1 . . . . . . . . . 9 1 . 2 3 12 Swap 219 | . 1 3 6 . 5 . . 9 4 3 8 8 8 10 9 7 7 13 . 1 4 15 2 7 . 3 4 . 2 5 35 5 3 16 8 8 Drop 362 | . 1 7 11 4 9 . . 12 10 4 12 10 27 8 7 5 6 17 . 2 3 34 . 17 . 3 4 3 1 11 46 3 9 31 10 35 Fire 1560 | . 26 14 66 8 . . . 44 70 20 72 35 48 58 38 51 79 109 7 . 16 34 4 21 . 9 23 6 19 41 145 25 49 151 74 198 Melee 11 | . . . . . . . . . . . . . . . . . . . . . 1 1 . . . . . . . . 9 . . . . . Ram . | . . . . . . . . . . . . . . . . . . . . . . . . . . . . . . . . . . . . . Kick 9 | . . . 7 . . . . . . . . . . . . . . . . . . . . . . . . . . . . . 1 1 . . Crush 29 | 1 . 13 6 1 . . . . 4 . . . . . . . . . . . . . . . . . . . . 1 2 . . . . 1 Escape Stasis 300 | . . . . . . . . 10 . 11 . 88 8 40 . 48 16 47 . . 3 29 . . . . . . . . . . . . . . Rewire 25 | . . . . . . . . . . . 4 . 2 . 2 4 . . 3 . . 1 . 4 . . . . 2 . 3 . . . . . Trap . | . . . . . . . . . . . . . . . . . . . . . . . . . . . . . . . . . . . . . Miscellaneous . | . . . . . . . . . . . . . . . . . . . . . . . . . . . . . . . . . . . . . Route ------- -11/Scrapyard -10/Materials -10/Mines (discovered 2 exits: *Mat x2) -9/Materials (discovered 4 exits: *Mat x2 / *Min x2) -9/Mines -9/Exiles -8/Mines -8/Materials (discovered 2 exits: Fac / Gar) -8/Garrison (discovered 3 exits: *Mat x3) -8/Materials (discovered 2 exits: *Fac / Gar) -8/Garrison (discovered 2 exits: *Fac x2) -7/Factory (discovered 3 exits: *Sto / *Low / Gar) -7/Garrison (discovered 3 exits: *Fac x3) -7/Factory (discovered 5 exits: *Fac / Sto / *Low x2 / Gar) -7/Garrison (discovered 2 exits: *Fac x2) -6/Factory (discovered 2 exits: [*Fac] / Gar) -6/Garrison (discovered 3 exits: *Fac x3) -6/Factory (discovered 2 exits: [*Fac] / Gar) -6/Garrison (discovered 3 exits: [*Fac x3]) -5/Factory -5/Waste -5/Factory (discovered 3 exits: Upp x2 / Gar) -5/Garrison (discovered 3 exits: *Fac x3) -4/Factory -4/Garrison (discovered 3 exits: *Fac x3) -4/Factory (discovered 2 exits: *Upp x2) -4/Upper Caves -4/Upper Caves (discovered 2 exits: *Res / *Zhi) -4/Zhirov -3/Proximity Caves -3/Research (discovered 4 exits: Res / Arm / *Tes x2) -3/Testing -2/Research -2/Quarantine -2/Section 7 -1/Access (discovered 2 exits: Sur / *Com) -1/Command (discovered 2 exits: *Sur x2) To Epsilon Eridani History --------- Turn | Location | Event 6 | -11/Scrapyard | Discovered new exit (range 16) 71 | -11/Scrapyard | Entered Materials 314 | -10/Materials | Build established: Mutant 366 | -10/Materials | Central database locked down 409 | -10/Materials | Discovered new exit (range 5) 417 | -10/Materials | Entered Mines 454 | -10/Mines | Found the Drone Emporium 464 | -10/Mines | Found Prototype Device 465 | -10/Mines | Identified Sensor Drone Bay 487 | -10/Mines | Learned Materials trap positions 509 | -10/Mines | Discovered new exit (range 8) 517 | -10/Mines | YI-UF0 nonchalantly dropped a Grenade Launcher on the ground 563 | -10/Mines | Destroyed YI-UF0 575 | -10/Mines | Found Prototype Launcher 583 | -10/Mines | Found Prototype Storage 646 | -10/Mines | Discovered new exit (range 10) 657 | -10/Mines | Received a Mining Laser from a helpful Derelict 755 | -10/Mines | Assisted by bots powering up and referring to "LRC-V3" 811 | -10/Mines | Entered Materials 811 | -9/Materials | Accompanied by 3 allies 811 | -9/Materials | Evolved 2 slots: Utility x2 812 | -9/Materials | Loaded intel: 25 trap records 925 | -9/Materials | Identified exit to Mines 1142 | -9/Materials | Build established: Scavenger-Mutant 1446 | -9/Materials | Discovered new exit (range 10) 1946 | -9/Materials | Discovered new exit (range 11) 2011 | -9/Materials | First assault squad dispatched 2108 | -9/Materials | Identified YI-UF0's Doublenader 2448 | -9/Materials | Entered Mines 2452 | -9/Mines | Met a Derelict who couldn't figure out how to use a Trap Extractor 2643 | -9/Mines | Learned location of 1 exit from Materials 2798 | -9/Mines | Deemed a non-threat by the Exiles lab entrance 2800 | -9/Mines | Discovered new exit (range 5) 2812 | -9/Mines | Entered Exiles 2870 | -9/Exiles | Met 8R-AWN 2911 | -9/Exiles | Met EX-HEX 3007 | -9/Exiles | Met EX-DEC 3048 | -9/Exiles | Learned location of Zion (-7) 3344 | -9/Exiles | Met EX-BIN 3372 | -9/Exiles | Aligned with FarCom system 3375 | -9/Exiles | Given EX-Vault access code 3430 | -9/Exiles | Opened EX-Vault 3454 | -9/Exiles | Found Modified TNC 3465 | -9/Exiles | Found Superbattery 3466 | -9/Exiles | Identified YI-UF0's Bottomless Matter Pit 3475 | -9/Exiles | Found AWS/Thermal 3572 | -9/Exiles | Warned to stay clear of 0b10 Research branches 3716 | -9/Exiles | Discovered new exit (range 14) 3744 | -9/Exiles | Stole three prototypes: Superbattery, Modified TNC, AWS/Thermal 3744 | -9/Exiles | Entered Mines 3752 | -8/Mines | Discovered new exit (range 11) 3797 | -8/Mines | Entered Materials 3797 | -8/Materials | Evolved 2 slots: Utility x2 3798 | -8/Materials | Identified exit to Factory 3888 | -8/Materials | Identified exit to Garrison 3888 | -8/Materials | Entered Garrison 4057 | -8/Garrison | Lost 3 parts (1p1u1w) 4080 | -8/Garrison | Destroyed 9 combat bots 4112 | -8/Garrison | Triggered checkpoint 4203 | -8/Garrison | Discovered new exit (range 8) 4340 | -8/Garrison | Triggered checkpoint 4460 | -8/Garrison | Discovered new exit (range 9) 4678 | -8/Garrison | Triggered checkpoint 4750 | -8/Garrison | Triggered checkpoint 4821 | -8/Garrison | Discovered new exit (range 11) 4869 | -8/Garrison | Installed Relay Interface Framework 5048 | -8/Garrison | Triggered checkpoint 5214 | -8/Garrison | Garrison Relay disabled 5508 | -8/Garrison | Triggered checkpoint 5566 | -8/Garrison | Garrison Relay disabled 5642 | -8/Garrison | Entered Materials 6748 | -8/Materials | Discovered exit to Factory (range 10) 7018 | -8/Materials | Identified exit to Garrison 7018 | -8/Materials | Entered Garrison 7158 | -8/Garrison | Triggered checkpoint 7235 | -8/Garrison | Discovered exit to Factory (range 12) 7278 | -8/Garrison | Expanded RIF knowledge: Alert ID Control 7443 | -8/Garrison | Discovered exit to Factory (range 8) 7586 | -8/Garrison | Garrison Relay disabled 7874 | -8/Garrison | Entered Factory 7874 | -7/Factory | Evolved 2 slots: Utility x2 7876 | -7/Factory | FarCom data flow suspended 7902 | -7/Factory | Build established: Hauler-Mutant 7953 | -7/Factory | Discovered new exit (range 5) 8539 | -7/Factory | Build established: Bothacker-Mutant 8635 | -7/Factory | Fabricated A-02 Transporter? 8735 | -7/Factory | Fabricated O-16 Technician? 9503 | -7/Factory | Fabricated A-02 Transporter (x1) 9621 | -7/Factory | Fabricated A-02 Transporter (x1) 9846 | -7/Factory | Discovered new exit (range 7) 9988 | -7/Factory | Found Powered Armor 10520 | -7/Factory | Identified exit to Garrison 10520 | -7/Factory | Entered Garrison 10520 | -7/Garrison | Accompanied by 1 ally 10586 | -7/Garrison | Triggered checkpoint 10634 | -7/Garrison | Garrison Relay disabled 10752 | -7/Garrison | Triggered checkpoint 10766 | -7/Garrison | Triggered checkpoint 10874 | -7/Garrison | Triggered checkpoint 10974 | -7/Garrison | Garrison Relay disabled 11045 | -7/Garrison | Discovered new exit (range 10) 11081 | -7/Garrison | Expanded RIF knowledge: Signal Jamming 11287 | -7/Garrison | Discovered new exit (range 13) 11406 | -7/Garrison | Triggered checkpoint 11428 | -7/Garrison | Garrison Relay disabled 11678 | -7/Garrison | Triggered checkpoint 11784 | -7/Garrison | Discovered new exit (range 12) 11864 | -7/Garrison | Triggered checkpoint 11894 | -7/Garrison | Garrison Relay disabled 12006 | -7/Garrison | Entered Factory 12006 | -7/Factory | Accompanied by 1 ally 12202 | -7/Factory | System corruption reached 10% 12232 | -7/Factory | Lost 3 parts (1n2u) 12254 | -7/Factory | Discovered new exit (range 15) 12432 | -7/Factory | P-60 Hacker assimilated allied Guardian 4d 12607 | -7/Factory | Identified exit to Storage 12607 | -7/Factory | Identified exit to Lower Caves 12646 | -7/Factory | Found Powered Armor 13154 | -7/Factory | Cargo convoy interrupted 13188 | -7/Factory | Found Prototype Protection 13199 | -7/Factory | Found Prototype Device 13199 | -7/Factory | Identified Adv. EM Disruption Field 13208 | -7/Factory | Lost 3 parts (1n2u) 13209 | -7/Factory | Identified Active Cooling Armor 13219 | -7/Factory | Destroyed 9 combat bots 13253 | -7/Factory | Found Prototype Launcher 13253 | -7/Factory | Identified Tesla Bomb Launcher 13258 | -7/Factory | Found Tesla Bomb Launcher 13381 | -7/Factory | Identified exit to Garrison 13381 | -7/Factory | Entered Garrison 13381 | -7/Garrison | Accompanied by 1 ally 13389 | -7/Garrison | Expanded RIF knowledge: Zone Cloak 13440 | -7/Garrison | Triggered checkpoint 13500 | -7/Garrison | Garrison Relay disabled 13648 | -7/Garrison | Triggered checkpoint 13670 | -7/Garrison | Triggered checkpoint 13696 | -7/Garrison | Triggered checkpoint 13760 | -7/Garrison | Triggered checkpoint 13766 | -7/Garrison | Garrison Relay disabled 13830 | -7/Garrison | Discovered new exit (range 13) 14016 | -7/Garrison | Garrison Relay disabled 14048 | -7/Garrison | Triggered checkpoint 14055 | -7/Garrison | Core integrity fell below 50% 14063 | -7/Garrison | Build established: Botlord-Mutant 14068 | -7/Garrison | Triggered checkpoint 14096 | -7/Garrison | Triggered checkpoint 14123 | -7/Garrison | Destroyed 8 combat bots 14314 | -7/Garrison | Discovered new exit (range 14) 14380 | -7/Garrison | Triggered checkpoint 14411 | -7/Garrison | Garrison Relay disabled 14484 | -7/Garrison | Entered Factory 14484 | -6/Factory | Accompanied by 1 ally 14484 | -6/Factory | Evolved 2 slots: Power x1, Utility x1 14916 | -6/Factory | Discovered new exit (range 10) 15324 | -6/Factory | Identified exit to Garrison 15464 | -6/Factory | Entered Garrison 15464 | -6/Garrison | Accompanied by 6 allies 15512 | -6/Garrison | Triggered checkpoint 15518 | -6/Garrison | Garrison Relay disabled 15592 | -6/Garrison | Triggered checkpoint 15596 | -6/Garrison | Triggered checkpoint 15608 | -6/Garrison | Triggered checkpoint 15614 | -6/Garrison | Triggered checkpoint 15714 | -6/Garrison | Discovered new exit (range 8) 15764 | -6/Garrison | Triggered checkpoint 15790 | -6/Garrison | Garrison Relay disabled 15993 | -6/Garrison | Discovered new exit (range 13) 16021 | -6/Garrison | Expanded RIF knowledge: Structural Interface 16096 | -6/Garrison | Triggered checkpoint 16098 | -6/Garrison | Triggered checkpoint 16123 | -6/Garrison | Garrison Relay disabled 16250 | -6/Garrison | Discovered new exit (range 10) 16306 | -6/Garrison | Triggered checkpoint 16319 | -6/Garrison | Garrison Relay disabled 16410 | -6/Garrison | Entered Factory 16410 | -6/Factory | Accompanied by 5 allies 16520 | -6/Factory | Fabricated A-02 Transporter? 16537 | -6/Factory | Fabricated L-41 Fighter (x3) 17152 | -6/Factory | Repaired Remote Datajack 17397 | -6/Factory | Discovered new exit (range 11) 17985 | -6/Factory | Found Prototype Device 17986 | -6/Factory | Identified Active Sensor Suite 18253 | -6/Factory | Build established: Bothacker-Mutant 18255 | -6/Factory | Identified exit to Garrison 18255 | -6/Factory | Entered Garrison 18255 | -6/Garrison | Accompanied by 1 ally 18291 | -6/Garrison | Garrison Relay disabled 18349 | -6/Garrison | Core integrity fell below 50% 18541 | -6/Garrison | Lost 4 parts (1p1n2w) 18554 | -6/Garrison | Destroyed 21 combat bots 18622 | -6/Garrison | Core integrity fell below 20% 18631 | -6/Garrison | System corruption reached 10% 18644 | -6/Garrison | Lost 8 parts (2p1n2u3w) 18863 | -6/Garrison | Build established: Hacker-Mutant 18886 | -6/Garrison | Discovered new exit (range 10) 19021 | -6/Garrison | Garrison Relay disabled 19433 | -6/Garrison | Discovered new exit (range 12) 19577 | -6/Garrison | Discovered new exit (range 3) 19591 | -6/Garrison | Expanded RIF knowledge: Command Fork 19631 | -6/Garrison | Garrison Relay disabled 19679 | -6/Garrison | Entered Factory 19679 | -5/Factory | Evolved 2 slots: Propulsion x2 19783 | -5/Factory | Sucked down chute 19783 | -5/Factory | Entered Waste 19785 | -5/Waste | 1 allies followed down the chute 19798 | -5/Waste | EMP discharged 19832 | -5/Waste | Spotted C-40 Crusher 19845 | -5/Waste | 2 allies followed down the chute 19849 | -5/Waste | Spotted C-40 Crusher 19854 | -5/Waste | Crushed by Compactor (1 part destroyed) 19855 | -5/Waste | Spotted C-40 Crusher 19859 | -5/Waste | Crushed by Compactor (1 part destroyed, 1 dropped) 19862 | -5/Waste | Crushed by Compactor (1 part destroyed) 19864 | -5/Waste | Crushed by Compactor (1 part destroyed, 1 dropped) 19865 | -5/Waste | Crushed by Compactor (1 part destroyed) 19867 | -5/Waste | Spotted C-40 Crusher 19869 | -5/Waste | Crushed by Compactor (0 parts destroyed, 1 dropped) 19896 | -5/Waste | Lost 7 parts (1p4n1u1w) 19898 | -5/Waste | EMP discharged 19898 | -5/Waste | System corruption reached 10% 19916 | -5/Waste | Spotted C-40 Crusher 19925 | -5/Waste | Discovered new exit (range 10) 19939 | -5/Waste | Entered Factory 20117 | -5/Factory | Identified exit to Upper Caves 20134 | -5/Factory | Build established: Mutant 20235 | -5/Factory | Found Prototype Launcher 20235 | -5/Factory | Identified Rocket Array 20238 | -5/Factory | Found Rocket Array 20241 | -5/Factory | Found Rocket Array 20245 | -5/Factory | Found Rocket Array 20379 | -5/Factory | Garrison activated, responded to threat 20446 | -5/Factory | Identified exit to Garrison 20446 | -5/Factory | Entered Garrison 20446 | -5/Garrison | Accompanied by 1 ally 20480 | -5/Garrison | Triggered checkpoint 20530 | -5/Garrison | Garrison Relay disabled 20681 | -5/Garrison | Build established: Botlord-Mutant 20696 | -5/Garrison | Triggered checkpoint 20790 | -5/Garrison | Triggered checkpoint 20902 | -5/Garrison | Spotted B-75 Beast 20902 | -5/Garrison | Spotted B-75 Beast 20942 | -5/Garrison | Triggered checkpoint 21015 | -5/Garrison | Garrison Relay disabled 21156 | -5/Garrison | Garrison Relay disabled 21284 | -5/Garrison | Hijacked Beast 6a control node with streamctrl_high 21304 | -5/Garrison | Assimilated Beast 6b with formatsys_high 21448 | -5/Garrison | Triggered checkpoint 21514 | -5/Garrison | Triggered checkpoint 22150 | -5/Garrison | Destroyed Beast 6a 22369 | -5/Garrison | Discovered new exit (range 10) 22504 | -5/Garrison | Triggered checkpoint 22531 | -5/Garrison | Garrison Relay disabled 22740 | -5/Garrison | Discovered new exit (range 9) 22944 | -5/Garrison | Discovered new exit (range 10) 22984 | -5/Garrison | Expanded RIF knowledge: Zone Cloak 23340 | -5/Garrison | Entered Factory 23340 | -4/Factory | Evolved 2 slots: Propulsion x2 23442 | -4/Factory | Identified exit to Garrison 23447 | -4/Factory | Entered Garrison 23447 | -4/Garrison | Accompanied by 1 ally 23472 | -4/Garrison | Triggered checkpoint 23528 | -4/Garrison | Garrison Relay disabled 23674 | -4/Garrison | Triggered checkpoint 23676 | -4/Garrison | Spotted B-86 Titan 23678 | -4/Garrison | Allies destroyed B-86 Titan 23688 | -4/Garrison | Triggered checkpoint 23690 | -4/Garrison | Triggered checkpoint 23690 | -4/Garrison | Triggered checkpoint 23900 | -4/Garrison | Triggered checkpoint 23909 | -4/Garrison | Garrison Relay disabled 23950 | -4/Garrison | Discovered new exit (range 10) 23974 | -4/Garrison | Expanded RIF knowledge: Threat Obfuscation 24100 | -4/Garrison | Garrison Relay disabled 24139 | -4/Garrison | Discovered new exit (range 15) 24190 | -4/Garrison | Triggered checkpoint 24320 | -4/Garrison | Triggered checkpoint 24342 | -4/Garrison | Garrison Relay disabled 24418 | -4/Garrison | Garrison Relay disabled 24486 | -4/Garrison | Discovered new exit (range 9) 24720 | -4/Garrison | Entered Factory 24720 | -4/Factory | Accompanied by 7 allies 24799 | -4/Factory | Discovered new exit (range 8) 24845 | -4/Factory | Identified exit to Upper Caves 24880 | -4/Factory | Entered Upper Caves 24880 | -4/Upper Caves | Accompanied by 7 allies 24880 | -4/Upper Caves | Spotted 25-XT7(f) 24881 | -4/Upper Caves | Encountered a Master Thief 24883 | -4/Upper Caves | Destroyed 25-XT7(f) 24931 | -4/Upper Caves | Learned 8 Research zone layouts 25404 | -4/Upper Caves | Spotted B-86 Titan 25417 | -4/Upper Caves | Allies destroyed B-86 Titan 25523 | -4/Upper Caves | Discovered new exit (range 12) 25582 | -4/Upper Caves | Entered another Upper Caves area 25582 | -4/Upper Caves | Accompanied by 3 allies 25586 | -4/Upper Caves | Discovered new exit (range 9) 25959 | -4/Upper Caves | P-70 Sage assimilated allied Sentinel 7a 26014 | -4/Upper Caves | Learned 4 Research zone layouts 26094 | -4/Upper Caves | Learned Research garrison access intel 26152 | -4/Upper Caves | Spotted BI-LL4(f) 26153 | -4/Upper Caves | Encountered a Master Thief 26154 | -4/Upper Caves | Relay Coupler [Sentry] stolen by Master Thief 26163 | -4/Upper Caves | Spotted R7-GIZ(f) 26163 | -4/Upper Caves | Spotted HE-J2D(f) 26164 | -4/Upper Caves | Encountered a Master Thief 26164 | -4/Upper Caves | Encountered a Master Thief 26164 | -4/Upper Caves | Spotted VA-R7Z(f) 26165 | -4/Upper Caves | Encountered a Master Thief 26166 | -4/Upper Caves | Quantum Rifle stolen by Master Thief 26168 | -4/Upper Caves | Destroyed HE-J2D(f) 26168 | -4/Upper Caves | Quantum Rifle stolen by Master Thief 26290 | -4/Upper Caves | Discovered new exit (range 9) 26307 | -4/Upper Caves | Entered Zhirov 26307 | -4/Zhirov | Accompanied by 1 ally 26307 | -4/Zhirov | Discovered new exit (range 3) 26337 | -4/Zhirov | Met Zhirov 26376 | -4/Zhirov | Found Alien Artifact 26376 | -4/Zhirov | Identified Integrated Reactor 26376 | -4/Zhirov | Installed Integrated Reactor, increased core energy generation (+10) 26462 | -4/Zhirov | Found Alien Artifact 26510 | -4/Zhirov | Learned location of Quarantine (-2) 26510 | -4/Zhirov | Learned location of Command (-1) 26510 | -4/Zhirov | Learned location of Testing (-3) 26519 | -4/Zhirov | Zhirov requested help retrieving the SGEMP Prototype 26588 | -4/Zhirov | Entered Proximity Caves 26588 | -3/Proximity Caves | Accompanied by 1 ally 26807 | -3/Proximity Caves | Attracted the attention of an 0b10 checkpoint 26938 | -3/Proximity Caves | Discovered new exit (range 8) 27440 | -3/Proximity Caves | Entered Research 27440 | -3/Research | Accompanied by 7 allies 27440 | -3/Research | Evolved 2 slots: Utility x2 27441 | -3/Research | Identified exit to Testing 27441 | -3/Research | Identified exit to Research 27441 | -3/Research | Identified exit to Armory 27442 | -3/Research | Loaded intel: 2 garrison access locations 27466 | -3/Research | Found Unknown Device 27466 | -3/Research | Identified Antimissile System 27875 | -3/Research | Spotted B-86 Titan 27880 | -3/Research | Allied Derelicts emerged from ambush trap array 27889 | -3/Research | Allies destroyed B-86 Titan 28428 | -3/Research | Entered Testing 28428 | -3/Testing | Accompanied by 9 allies 28441 | -3/Testing | Spotted PH-2JLUL9PR61 28453 | -3/Testing | Rewired PH-2JLUL9PR61 28596 | -3/Testing | Allies destroyed PH-2JLUL9PR61 28600 | -3/Testing | Found Corrupted Prototype Reactor 28604 | -3/Testing | Found Corrupted Prototype Reactor 28635 | -3/Testing | System corruption reached 10% 28778 | -3/Testing | Found Hyp. Multirail 29002 | -3/Testing | Spotted Striker 29006 | -3/Testing | Spotted Striker 29109 | -3/Testing | Fabricated Arm. Heavy Treads (x2) 29503 | -3/Testing | Spotted Alpha 7 29526 | -3/Testing | Destroyed Alpha 7 29533 | -3/Testing | Spotted P9-ELH(K) 29603 | -3/Testing | Rewired P9-ELH(K) 29731 | -3/Testing | Found Prototype Energy Cannon 29761 | -3/Testing | Spotted PG-OR1XCVLRJR 29767 | -3/Testing | Rewired PG-OR1XCVLRJR 29824 | -3/Testing | System corruption reached 30% 29934 | -3/Testing | Build established: Scavenger-Mutant 29981 | -3/Testing | Found Prototype Hackware 29992 | -3/Testing | Discovered exit to Research (range 19) 30002 | -3/Testing | Found Prototype Ballistic Cannon 30004 | -3/Testing | Identified Perforator 30007 | -3/Testing | Identified Disintegrator 30122 | -3/Testing | Found Prototype Energy Cannon 30123 | -3/Testing | Identified Null Cannon 30355 | -3/Testing | Spotted Alpha 7 30357 | -3/Testing | Destroyed Striker 30398 | -3/Testing | Destroyed Alpha 7 30421 | -3/Testing | Destroyed Striker 30440 | -3/Testing | Stole the SGEMP Prototype 30717 | -3/Testing | Identified Zero-point Reactor (x2) 30727 | -3/Testing | Entered Research 30727 | -2/Research | Evolved 2 slots: Power x1, Utility x1 30761 | -2/Research | Identified Transdimensional Reconstructor 30761 | -2/Research | Identified Exp. System Shield 31064 | -2/Research | Spotted B-90 Cyclops 31156 | -2/Research | Discovered new exit (range 8) 31161 | -2/Research | Entered Quarantine 31227 | -2/Quarantine | Found Alien Artifact 31289 | -2/Quarantine | Scanned by Researcher 31527 | -2/Quarantine | Build established: Generator-Mutant 31659 | -2/Quarantine | Found Alien Energy Cannon 31694 | -2/Quarantine | Found Transdimensional Reconstructor 31697 | -2/Quarantine | Found Alien Artifact 31699 | -2/Quarantine | Found Alien Artifact 31702 | -2/Quarantine | Found Transdimensional Reconstructor 31749 | -2/Quarantine | Spotted Fortress 31839 | -2/Quarantine | Discovered new exit (range 6) 31844 | -2/Quarantine | Entered Section 7 31866 | -2/Section 7 | Found Alien Artifact 31866 | -2/Section 7 | Identified Integrity Redistributor 31866 | -2/Section 7 | Used Integrity Redistributor, redistributed integrity from core (-252) 31903 | -2/Section 7 | Found Alien Artifact 31903 | -2/Section 7 | Identified Spacefold Activator 31917 | -2/Section 7 | Spotted B-90 Cyclops 31942 | -2/Section 7 | Identified Subatomic Replicator 31942 | -2/Section 7 | Used Subatomic Replicator to replicate Hyp. Multirail 32127 | -2/Section 7 | Spotted S7 Guard 32139 | -2/Section 7 | Found Alien Artifact 32139 | -2/Section 7 | Identified Integrated Thermoelectric Network 32139 | -2/Section 7 | Installed Integrated Thermoelectric Network, gained heat-energy exchange potential 32175 | -2/Section 7 | Destroyed S7 Guard 32181 | -2/Section 7 | Found Prototype Protection 32181 | -2/Section 7 | Identified Hvy. Regenerative Plating 32302 | -2/Section 7 | Destroyed 8 combat bots 32344 | -2/Section 7 | First assault squad dispatched 32513 | -2/Section 7 | Identified Hpw. Transdimensional Reconstructor (x2) 32513 | -2/Section 7 | Identified Core Cannon 32583 | -2/Section 7 | Found Prototype Protection 32583 | -2/Section 7 | Identified Centrium Heavy Armor Plating 32745 | -2/Section 7 | Discovered new exit (range 5) 32943 | -2/Section 7 | Found Prototype Processor 32944 | -2/Section 7 | Identified Exp. Core Analyzer 32966 | -2/Section 7 | Spotted S7 Guard 33009 | -2/Section 7 | Destroyed S7 Guard 33263 | -2/Section 7 | Found Integrated Reactor 33263 | -2/Section 7 | Installed Integrated Reactor, increased core energy generation (+10) 33276 | -2/Section 7 | Destroyed 7 combat bots 33297 | -2/Section 7 | Warped through subspace 33361 | -2/Section 7 | Entered Access 33361 | -1/Access | Evolved 2 slots: Utility x2 33362 | -1/Access | Loaded intel: 104 machine locations 33362 | -1/Access | Loaded intel: 65 trap records 33362 | -1/Access | Identified exit to Surface 33362 | -1/Access | Discovered exit to Surface (range 143) 33362 | -1/Access | Identified exit to Command 33362 | -1/Access | Discovered exit to Command (range 183) 33363 | -1/Access | Delivered the SGEMP Prototype to Zhirov 33363 | -1/Access | Zhirov transferred Access data 33380 | -1/Access | Zhirov warped through subspace 33386 | -1/Access | Garrison activated, responded to threat 33447 | -1/Access | Destroyed 8 combat bots 33647 | -1/Access | Spotted B-99 Colossus 33861 | -1/Access | First assault squad dispatched 33980 | -1/Access | Destroyed 7 combat bots 34091 | -1/Access | Spotted B-99 Colossus 34386 | -1/Access | Entered Command 35020 | -1/Command | Spotted M Guard 35020 | -1/Command | Spotted M Guard 35020 | -1/Command | Spotted Combat Programmer 35026 | -1/Command | Spotted Combat Programmer 35055 | -1/Command | System corruption reached 10% 35055 | -1/Command | Destroyed Combat Programmer 35103 | -1/Command | Lost 6 parts (1p5u) 35136 | -1/Command | First assault squad dispatched 35160 | -1/Command | Destroyed M Guard 35286 | -1/Command | Destroyed M Guard 35286 | -1/Command | All MAIN.C guards destroyed 35455 | -1/Command | 0b10 Conduit disabled 35456 | -1/Command | Met MAIN.C 35492 | -1/Command | Destroyed MAIN.C Shell 35494 | -1/Command | Surrendered to MAIN.C 35494 | -1/Command | Loaded intel: 60 machine locations 35494 | -1/Command | Loaded intel: 106 trap records 35494 | -1/Command | Discovered exit to Surface (range 47) 35494 | -1/Command | Discovered exit to Surface (range 83) 35615 | -1/Command | Found Zero-point Reactor 35619 | -1/Command | Found Zero-point Reactor 35622 | -1/Command | Found Prototype Device 35622 | -1/Command | Identified Exp. Transmission Jammer 35625 | -1/Command | Found Prototype Device 35625 | -1/Command | Identified Adv. Particle Accelerator 35628 | -1/Command | Found Prototype Device 35628 | -1/Command | Identified Exp. System Purifier 35631 | -1/Command | Found Prototype Device 35631 | -1/Command | Identified Beam Splitter 35635 | -1/Command | Found Spectral Analyzer 35646 | -1/Command | Found Null Cannon 35700 | -1/Command | MAIN.C activated Command garrisons 35734 | -1/Command | Unknown forces attacked Command 35734 | -1/Command | Spotted EQ-006 35734 | -1/Command | Spotted EQ-002 35734 | -1/Command | Spotted EQ-003 35734 | -1/Command | Spotted EQ-005 35734 | -1/Command | Spotted EQ-009 35734 | -1/Command | Spotted EQ-001 35736 | -1/Command | Spotted EQ-004 35737 | -1/Command | Spotted EQ-000 35761 | -1/Command | Core integrity fell below 50% 35768 | -1/Command | Destroyed EQ-006 35781 | -1/Command | Spotted EQ-017 35815 | -1/Command | Found Corrupted Exp. Core Analyzer 35816 | -1/Command | Lost 8 parts (1p2n4u1w) 35828 | -1/Command | Spotted EQ-019 35828 | -1/Command | Spotted EQ-018 35831 | -1/Command | Spotted EQ-020 35853 | -1/Command | Destroyed EQ-020 35879 | -1/Command | Spotted EQ-007 35902 | -1/Command | Spotted EQ-030 35902 | -1/Command | Destroyed EQ-007 35941 | -1/Command | Spotted EQ-058 35941 | -1/Command | Spotted EQ-055 35941 | -1/Command | Spotted EQ-038 35941 | -1/Command | Spotted EQ-040 35941 | -1/Command | Spotted EQ-039 35946 | -1/Command | Spotted EQ-036 35956 | -1/Command | Destroyed EQ-058 35981 | -1/Command | Spotted EQ-042 35987 | -1/Command | Spotted EQ-045 35989 | -1/Command | Spotted EQ-052 36007 | -1/Command | Spotted EQ-023 36021 | -1/Command | Found Prototype Processor 36021 | -1/Command | Identified Exp. Targeting Computer 36026 | -1/Command | Found Corrupted Prototype Device 36029 | -1/Command | Spotted EQ-050 36031 | -1/Command | Identified Adv. Kinecellerator 36033 | -1/Command | Spotted EQ-021 36039 | -1/Command | Destroyed EQ-021 36043 | -1/Command | Spotted EQ-063 36051 | -1/Command | Spotted EQ-061 36057 | -1/Command | Spotted EQ-077 36074 | -1/Command | Destroyed EQ-061 36084 | -1/Command | Spotted EQ-083 36091 | -1/Command | Spotted EQ-062 36113 | -1/Command | Spotted EQ-080 36121 | -1/Command | Spotted EQ-075 36124 | -1/Command | Core integrity fell below 20% 36133 | -1/Command | Spotted EQ-068 36136 | -1/Command | Spotted EQ-081 36158 | -1/Command | Spotted EQ-108 36163 | *** | Escaped! Last Messages --------------- 36132_ MAIN.C: "Ha ha ha." 36132_ MAIN.C destroyed. 36132_ Graviton Cannon destroyed. 36133_ The unstable cave ceiling collapses. 36133_ Graviton Cannon destroyed. 36136_ Dropped YI-UF0's Bottomless Matter Pit. 36137_ Dropped Huge Storage Unit. 36138_ Dropped Adv. Kinecellerator. 36138_ Dropped Beam Splitter. 36138_ Zero-point Reactor destroyed. 36139_ Machine Analyzer destroyed. 36139_ Dropped Superbattery. 36139_ Dropped Antimissile System. 36139_ Antimissile System crushed and broken. 36140_ Ended siege mode. 36140_ Dropped Exp. System Purifier. 36140_ Exp. System Purifier crushed and broken. 36141_ The unstable cave ceiling collapses. 36144_ System corrupted: Component data lost. 36159_ 7GDZACYEN>ILLISW:<|%SR0IJEGWD7SH0 Map ----- +----------------------------------------------------+ | #???????????????????????????????????????? | | #???????????????????????????????????????? | | #???????????????????????????????????????? | | " "" #???????????????????????????????????????? | | " """" #???????????????????????????????????????? | | " """" #???????????????????????????????????????? | | " "" #####???????????????????????????????????? | | + #???????????????????????????????????? | | ### #???????????????????????????????????? | | #+########?# #???????????????????????????????????? | | #??????# #???????????????????????????????????? | | #??????# #???????????????????????????????????? | | ########+##########??????????????????????????? | | + #??????????????????????????? | | ###### #??????????????????????????? | | #????# "" #??????????????????????????? | | ###????# """#??????????????????????????? | | #??????# "" T"#??????????????????????????? | | #??????# """" """#??????????????????????????? | | #??????# """" "" #??????????????????????????? | | ##?????# "" #??????????????????????????? | | #?????# #??????????????????????????? | | ####### #??????????????????????????? | | # """ # ######?????????????????????? | | #""T""# ## #?????????????????????? | | !%*#"" ""#########+##### @ #?????????????????????? | | ! #?????????????????????? | | #??????###########????? | | !!! #########??????# #????? | | !!! * #???????####???# #????? | | !! #########""##### ! "" #?#### | | % %= [%=%[[% # """"#?#??? | | % [%==%! + """"#?#?## | | % % ###"" ##%##### # "" #?#?#" | | ############### # # % #??# # #?#?#" | | #???# + ### ## # #?# + #?#?#" | | #???# # # ## ### ### #######+###?#?#" | | #???# # = ## #?????# #???#?#" | | #???# = # # # ## #?????# ##??#?#" | | ! #???########### ## "" ## #??#### "#?##?#" | | ############### #?# ] """ ## #??#%"#+"## #?# | | ## + #?# T ## #??# " #?# | | ## # #? # ## #??# " #?# | | + ### ## #??# #?# | | #### "" %#? # % ## #??# #?# | | #?# """" #? %% ##?# % ! #?# | | ### """" # # ## # # # # %%[ #?# | | + + "" # # # % % """" %!*/]####% | | ### == %%%= %% %=%%%!=[==![ | | #?# # %# # %= % !=%!=%!%[]%= | +----------------------------------------------------+ Best States ------------- Heat Dissipation 132 Coolant Potential 120 Energy Generation 123 Energy Capacity 2130 Matter Stores 1275 Matter Capacity 1800 Sight Range 24 Robot Scan Range 20 Terrain Scan Density 10 Jamming Range 22 Power Amplification 60 Corruption Containment 8 Corruption Block 15 Armor Coverage 2400 Resistance: KI 30 Resistance: TH 75 Resistance: EM 50 Core Shielding 40 Power Shielding 90 Point Defense Rating 240 Weapon Cycling 25 Evasion (%) 63 Targeting Accuracy 12 Core Analysis 8 Recoil Reduction 10 Matter Filtering 30 Particle Charging 50 Kinecelleration 50 Offensive Hacking 26 Defensive Hacking 16 Relay Coupler Types 5 Relay Coupler Value 116 Item Schematics ----------------- Assault Drone Bay | -4/Zhirov | Free Exp. Heat Sink | -4/Zhirov | Free Exp. Optical Array | -4/Zhirov | Free Imp. Arc Thrower | -4/Zhirov | Free Force Field | -3/Testing | Reported Neutron Missile Launcher | -3/Testing | Reported Cld. Impulse Thruster | -3/Testing | Reported Antigrav Array | -3/Testing | Reported Exp. Myomer Leg | -3/Testing | Reported Gravity Flail | -3/Testing | Reported Impact Mace | -3/Testing | Reported Imp. Terrain Scanner | -3/Testing | Reported Imp. Thermal Defense Suite | -3/Testing | Reported Power Amplifier | -3/Testing | Reported Hvy. Wave Gun | -3/Testing | Reported Enh. Biometal Leg | -3/Testing | Reported Enh. Armored Leg | -3/Testing | Reported Arm. Heavy Treads | -3/Testing | Reported Exp. Signal Interpreter | -3/Testing | Reported Gravity Neutralizer | -3/Testing | Reported Tri-rail Accelerator | -3/Testing | Reported Cld. Antigrav System | -3/Testing | Reported Hdn. Centrium Wheel | -3/Testing | Reported Exp. Coolant Injector | -3/Testing | Reported Exp. Focal Shield | -3/Testing | Archive Exp. Melee Analysis Suite | -3/Testing | Archive Imp. Energy Mantle | -3/Testing | Archive Hvy. Dispersion Rifle | -3/Testing | Archive Proton Burst Cannon | -3/Testing | Archive Adv. KE Penetrator | -3/Testing | Archive Spectral Analyzer | -3/Testing | Archive Exp. Thermal Generator | -3/Testing | Archive Centrium Light Armor Plating | -3/Testing | Archive Adv. EM Disruption Field | -3/Testing | Archive Hvy. Gatling Laser | -3/Testing | Archive Nanosword | -3/Testing | Archive Adv. Energy Well | -3/Testing | Archive Exp. Terrain Scan Processor | -3/Testing | Archive Tesla Bomb Launcher | -3/Testing | Archive Coolant Network | -3/Testing | Archive Cld. Proton Cannon | -3/Testing | Archive Cld. Antimatter Reactor | -3/Testing | Archive Com. Particle Reactor | -3/Testing | Archive Imp. Quantum Reactor | -2/Quarantine | Archive Prc. Matter Filter | -2/Quarantine | Archive Robot Schematics ------------------ A-02 Transporter | -9/Materials | Hacked O-16 Technician | -9/Materials | Hacked R-10 Processor | -3/Testing | Archive Y-72 Warden | -3/Testing | Archive K-01 Serf | -3/Testing | Archive Fabricated ------------ A-02 Transporter | x1 | -7/Factory O-16 Technician | x1 | -7/Factory A-02 Transporter | x1 | -7/Factory A-02 Transporter | x1 | -7/Factory A-02 Transporter | x1 | -6/Factory L-41 Fighter | x3 | -6/Factory | Preloaded Arm. Heavy Treads | x2 | -3/Testing Alien Tech Used ----------------- Integrated Reactor Integrity Redistributor Spacefold Activator Subatomic Replicator Integrated Thermoelectric Network Core Cannon Transdimensional Reconstructor Achievements -------------- None Challenges ------------ None Game ------ Seed MasterExplosiveVibroblade Manual? 0 Play Time 04:53:46 Cumulative 617.7 hours Start 2022.04.20 @ 15:56:40 End 2022.04.21 @ 13:50:29 Sessions 5 Manual Loads 0 Difficulty Rogue Special Mode None Game No. 417 Rogue 410 Adventurer 0 Explorer 7 Win Type 0 Total 38 Types 12/4/15/2/0/1/2/1/1 Lore% 86 Gallery% 95 Achievement% 82 Wizard Run 0 Options --------- ASCII 0 Keyboard 0 Movement Mouse Keybinds 0 Fullscreen 1 Font 18/X11Bold Map View 76x50 Tactical HUD 1 Map Filters NONE Filters NONE Steam 1 RUN: 79b6ccf2-a980-4100-a97f-0ff9f92ea4ee